Cogmind - Beta 12 *** ADVENTURER MODE // 2023.04.28 @ 22:14:56 Player: SuDmit Result: Escaped! Performance ------------- Evolutions (9) 4500 Regions Visited (33) 6600 Robots Destroyed (862) 4310 Value Destroyed (47181) 47181 Prototype IDs (95) 1900 Alien Tech Used (0) 0 Bonus (17163) 17163 TOTAL SCORE: 81654 Bonus ------- Triggered High Security 500 Triggered Max Security 1000 High Alert Combat Kills 8542 Follower Combat Kills 1516 Entered Garrisons 600 Network Hubs Disabled 200 Aligned with FarCom 300 Met Data Miner 300 Met Warlord at Base 500 MAIN.C Attacked Warlord 500 Warlord Defense Kills 840 Win 3000 Friendly Fire -635 Cogmind --------- Core Integrity 1476/1600 Matter 300/300 Energy 1079/1100 System Corruption 1% Temperature Cool (-176) Movement Treading (160) Location To Epsilon Eridani Parts ------- > --- POWER (4) -------- Improved Quantum Reactor Improved Quantum Reactor Improved Quantum Reactor Improved Quantum Reactor > --- PROPULSION (6) --- Advanced Heavy Siege Treads Advanced Heavy Siege Treads Advanced Heavy Siege Treads > --- UTILITY (10) ----- Advanced Cryofiber Web Advanced Heat Sink Advanced Heat Sink Advanced Cooling System Huge Storage Unit Advanced Transmission Jammer Centrium Light Armor Plating Centrium Light Armor Plating Centrium Light Armor Plating Advanced Force Field > --- WEAPON (5) ------- Gamma Rifle Gamma Rifle Gamma Rifle Gamma Rifle Micro-nuke Launcher > --- INVENTORY (25) --- Quantum Reactor Advanced Trap Scanner Advanced Signal Interpreter Experimental Focal Shield Advanced EM Disruption Field Experimental EM Disruption Field Improved Energy Mantle Antimissile System Improved Hacking Suite Advanced System Shield Advanced System Shield Advanced Component Analysis Suite Improved Recalibrator PSU Rigger Enhanced Quantum Rifle Enhanced Quantum Rifle Enhanced Nova Cannon Enhanced Nova Cannon Enhanced Nova Cannon KE Penetrator Hypervelocity Railgun Hardcell Cannon Compact Mass Driver Peak State ------------ > --- POWER ------------ Improved Quantum Reactor Improved Quantum Reactor Improved Quantum Reactor Improved Quantum Reactor > --- PROPULSION ------- Advanced Heavy Siege Treads Advanced Heavy Siege Treads Advanced Heavy Siege Treads > --- UTILITY ---------- Advanced Cryofiber Web Advanced Heat Sink Advanced Cooling System Huge Storage Unit Advanced Transmission Jammer Advanced Phase Shifter Centrium Light Armor Plating Centrium Light Armor Plating Experimental EM Disruption Field Advanced Force Field > --- WEAPON ----------- Gamma Rifle Gamma Rifle Gamma Rifle Enhanced Nova Cannon Enhanced Nova Cannon > --- INVENTORY -------- Quantum Reactor Advanced Trap Scanner Advanced Signal Interpreter Centrium Light Armor Plating Experimental Focal Shield Advanced Thermal Shield Improved Energy Mantle Antimissile System Improved Hacking Suite Advanced System Shield Advanced Component Analysis Suite Advanced System Restoration Module Improved Recalibrator PSU Rigger Gamma Rifle Gamma Rifle Enhanced Quantum Rifle Enhanced Quantum Rifle Heavy Neutron Cannon Enhanced Nova Cannon KE Penetrator Hypervelocity Railgun Hardcell Cannon Compact Mass Driver Micro-nuke Launcher [Rating: 225] Favorites ----------- Power Quantum Reactor Engine Reinforced Deuterium Engine Power Core Reinforced Fission Core Reactor Quantum Reactor Propulsion Advanced Heavy Siege Treads Treads Advanced Heavy Siege Treads Leg Flexi-carbon Leg Wheel Wheel Hover Unit Gravmag System Flight Unit Flight Unit Utility Large Storage Unit Device Experimental Cooling System Storage Large Storage Unit Processor Machine Analyzer Hackware Improved Hacking Suite Protection Light Regenerative Plating Weapon Gamma Rifle Energy Gun Gamma Rifle Energy Cannon Nova Cannon Ballistic Gun Advanced KE Penetrator Ballistic Cannon Heavy Mass Driver Launcher Micro-nuke Launcher Special Weapon Mining Laser Impact Weapon Heavy Mace Slashing Weapon Chainsword Piercing Weapon Spear Build | -11 -10 -10 -9 -9 -9 -8 -8 -8 -8 -8 -7 -7 -7 -7 -7 -7 -6 -6 -6 -6 -5 -5 -5 -5 -5 -4 -4 -4 -4 -3 -3 -2 -1 ------- Run | Jun Mat Min Mat Min Exi Min Mat Gar Mat Gar Fac Was Fac Low Low Dat Pro Fac Gar Fac Fac Ext Cet Arc Hub Fac Upp Upp War Pro Res Res Acc Slots Evolved 18 | . . . 2 . . . 2 . . . 2 . . . . . . 2 . . 2 . . . . 2 . . . . 2 2 2 Power 3 | . . . 1 . . . . . . . . . . . . . . . . . . . . . . . . . . . . . 2 Propulsion 4 | . . . 1 . . . . . . . 1 . . . . . . . . . . . . . . 1 . . . . . 1 . Utility 8 | . . . . . . . 2 . . . 1 . . . . . . 1 . . 1 . . . . 1 . . . . 1 1 . Weapon 3 | . . . . . . . . . . . . . . . . . . 1 . . 1 . . . . . . . . . 1 . . Parts Attached 998 | 6 4 15 19 1 . 6 34 26 37 37 15 2 35 5 6 . 14 32 28 3 60 9 48 20 24 92 1 5 12 9 165 85 143 Power 101 | 1 1 1 6 . . . 6 5 6 2 2 . 7 1 . . 3 5 4 1 2 1 6 3 4 7 . . 1 . 10 5 11 Engine 31 | 1 1 1 6 . . . 2 . 2 . 1 . 4 1 . . 1 2 2 1 1 . 3 . 2 . . . . . . . . Core 29 | . . . . . . . 4 5 4 2 1 . 3 . . . 1 3 1 . 1 1 1 1 . 1 . . . . . . . Reactor 41 | . . . . . . . . . . . . . . . . . 1 . 1 . . . 2 2 2 6 . . 1 . 10 5 11 Propulsion 115 | 2 . 9 4 . . . 4 2 3 6 4 . 8 . . . 6 10 3 1 1 . 8 8 1 17 . 1 . . 10 4 3 Treads 50 | . . . . . . . . . 3 . . . . . . . . . 3 1 1 . 4 6 1 16 . 1 . . 7 4 3 Leg 29 | . . . . . . . . . . 6 . . . . . . 6 7 . . . . 4 2 . 1 . . . . 3 . . Wheel 24 | 2 . 6 4 . . . 4 2 . . 4 . . . . . . 2 . . . . . . . . . . . . . . . Hover 8 | . . . . . . . . . . . . . 8 . . . . . . . . . . . . . . . . . . . . Flight 4 | . . 3 . . . . . . . . . . . . . . . 1 . . . . . . . . . . . . . . . Utility 548 | 1 3 2 3 1 . 6 13 12 25 17 6 2 15 3 1 . 4 15 15 1 56 8 21 5 19 56 1 4 11 8 82 51 81 Device 427 | . . 1 2 1 . 3 6 10 20 14 6 2 8 3 . . . 9 9 1 40 5 16 5 13 39 . 3 9 7 72 46 77 Storage 9 | 1 . 1 . . . 1 1 . . . . . . . . . . 1 . . 2 . . . . . . . 1 . 1 . . Processor 12 | . . . . . . . . . . . . . 3 . . . 1 2 . . . 2 . . . . . . . . 2 2 . Hackware 2 | . . . . . . . . . . . . . . . . . . . . . . . . . 2 . . . . . . . . Protection 98 | . 3 . 1 . . 2 6 2 5 3 . . 4 . 1 . 3 3 6 . 14 1 5 . 4 17 1 1 1 1 7 3 4 Artifact . | . . . . . . . . . . . . . . . . . . . . . . . . . . . . . . . . . . Weapon 234 | 2 . 3 6 . . . 11 7 3 12 3 . 5 1 5 . 1 2 6 . 1 . 13 4 . 12 . . . 1 63 25 48 Energy Gun 129 | 2 . 1 4 . . . 9 6 . 5 1 . . . . . . . . . . . 11 2 . 6 . . . 1 39 12 30 Energy Cannon 58 | . . 1 . . . . . . 3 5 2 . 2 . . . . . . . . . . . . 1 . . . . 21 9 14 Ballistic Gun 14 | . . . . . . . . . . . . . . . . . . . 1 . . . 1 2 . 5 . . . . 3 2 . Ballistic Cannon 11 | . . . . . . . . . . . . . . . . . . . 5 . 1 . 1 . . . . . . . . 1 3 Launcher 9 | . . . 2 . . . 2 . . 2 . . . . 1 . . . . . . . . . . . . . . . . 1 1 Special Weapon 1 | . . 1 . . . . . . . . . . . . . . . . . . . . . . . . . . . . . . . Impact Weapon 2 | . . . . . . . . 1 . . . . . . 1 . . . . . . . . . . . . . . . . . . Slashing Weapon 9 | . . . . . . . . . . . . . 3 1 3 . 1 1 . . . . . . . . . . . . . . . Piercing Weapon 1 | . . . . . . . . . . . . . . . . . . 1 . . . . . . . . . . . . . . . Special Melee Weapon . | . . . . . . . . . . . . . . . . . . . . . . . . . . . . . . . . . . Unidentified Prototypes 23 | . . 1 . . . . . . 1 . . . 1 . . . 1 1 . . . . 3 . 3 2 . . 3 . 5 2 . Corrupted Parts 1 | . . . . . . . 1 . . . . . . . . . . . . . . . . . . . . . . . . . . System Corruption 6 | . . . . . . . 6 . . . . . . . . . . . . . . . . . . . . . . . . . . Parts Lost 130 | . 1 6 4 . . . 10 2 1 4 1 5 3 . 6 . 7 8 6 3 1 2 23 1 3 1 . . 5 1 11 11 4 Power 27 | . 1 1 . . . . 2 1 1 2 1 1 1 . 2 . 1 2 2 1 . . 3 . 2 . . . . . 2 1 . Propulsion 21 | . . 1 1 . . . 2 . . . . 1 2 . 2 . 3 1 . 1 . . 3 1 . 1 . . . 1 1 . . Utility 53 | . . 2 1 . . . 2 . . 2 . 2 . . . . 2 5 4 1 1 2 10 . 1 . . . 5 . 4 6 3 Weapon 29 | . . 2 2 . . . 4 1 . . . 1 . . 2 . 1 . . . . . 7 . . . . . . . 4 4 1 Highest Loss Streak 11 | . 1 6 2 . . . 4 1 1 3 1 5 1 . 6 . 3 5 3 1 1 1 11 1 2 1 . . 3 1 7 10 2 To Critical Strikes 3 | . . . 1 . . . . . . . . . . . . . . . . 1 . . 1 . . . . . . . . . . Average Slot Usage (%) 86 | . 99 85 92 88 88 88 90 98 93 96 97 82 74 93 60 61 80 83 78 71 69 69 72 98 99 96 94 94 90 87 89 85 87 Engine 2 | . 13 11 16 11 11 11 9 3 6 6 3 6 2 15 1 . . 5 3 4 5 4 1 . 2 . . . . . . . . Core 2 | . . . . . . . 4 13 10 10 9 7 5 . . . 2 1 3 6 5 5 5 5 3 . . . . . . . . Reactor 6 | . . . . . . . . . . . . . . . . . 3 1 5 . . . 2 4 3 9 10 10 6 5 8 7 15 Treads 13 | . . . . . . . . . 25 18 . . . . . . . . 11 13 10 11 13 16 23 23 21 21 21 20 15 13 12 Leg 1 | . . . . . . . . . . 8 2 . . . . . 19 22 3 . . . . 4 . . . . . . . . . Wheel 3 | . 28 24 33 33 33 33 22 26 1 . 26 22 . . . . . 3 . . . . . . . . . . . . . . . Device 18 | . . 5 6 11 11 8 11 11 10 8 14 15 14 19 23 23 3 6 13 12 14 10 19 35 20 23 23 21 17 29 23 25 27 Storage 5 | . 8 7 11 11 11 10 5 9 9 9 7 5 . . . . . 3 6 6 5 5 5 5 5 5 5 5 5 5 4 4 4 Processor 1 | . . . . . . . . . . . . . 10 10 7 7 15 14 3 . . 2 . . . . . . . . 2 3 . Protection 10 | . 19 8 4 . . 2 17 15 10 17 15 10 5 7 . . 18 7 9 13 12 14 5 . 4 12 12 14 17 5 8 7 8 Energy Gun 8 | . 28 14 16 22 22 22 16 17 1 11 5 . . . . . . . . . . . 8 14 11 9 10 10 10 14 12 8 12 Energy Cannon 4 | . . 9 3 . . . . . 16 4 8 13 . . . . . . . . . . . . . 2 . . . . 9 10 6 Ballistic Gun 2 | . . . . . . . . . . . . . . . . . . . 3 . . . . 7 11 8 10 10 10 5 . . . Ballistic Cannon 2 | . . . . . . . . . . . . . . . . . . . 10 13 11 11 4 . . . . . . . . . . Naked Turns 60 | . . 13 . . . . . . . . . 7 40 . . . . . . . . . . . . . . . . . . . . Heaviest Build 237 | 12 15 29 40 25 24 28 48 63 60 54 59 59 28 27 27 12 47 72 109 112 137 132 127 88 103 114 99 101 121 106 194 215 237 Greatest Support 240 | 26 26 26 32 32 32 32 40 34 60 60 64 64 33 31 31 16 92 84 120 130 130 130 134 112 112 159 159 159 159 159 180 240 240 Greatest Overweight (x) 27 | . . 1 1 . . . 1 1 1 1 2 2 5 . 2 . 6 1 1 . 1 1 2 27 . 1 . . . 1 1 . . Average Overweight (x) . | . . . . . . . . . . . . . . . . . . . . . . . . . . . . . . . . . . Largest Inventory Capacity 25 | 8 8 10 10 10 10 10 10 10 10 10 10 10 5 5 5 5 5 15 15 15 15 15 15 15 15 15 15 15 15 15 25 25 25 Average Capacity 16 | 7 6 7 10 10 10 9 8 10 10 10 10 8 5 5 5 5 5 11 15 15 15 15 15 15 15 15 15 15 15 15 20 25 25 Most Carried 25 | . 5 5 10 9 10 10 10 10 10 10 10 9 5 5 5 5 5 15 15 15 15 15 15 15 15 15 15 15 15 15 25 25 25 Average Carried 15 | . 2 4 8 8 9 7 6 9 9 9 8 7 4 4 3 5 4 9 14 13 14 14 10 14 14 14 14 15 14 13 19 23 24 Final Capacity 25 | 8 5 10 10 10 10 10 10 10 10 10 10 5 5 5 5 5 5 15 15 15 15 15 15 15 15 15 15 15 15 15 25 25 25 Final Carried 25 | . 5 5 8 9 9 8 10 9 10 10 9 5 4 5 5 5 4 14 15 14 15 15 14 15 14 15 15 15 12 15 25 22 23 Class Distribution -------------------- 33% | Scavenger-Mutant 26% | Scavenger-Tank 16% | Mutant 5% | Tank 3% | Machinist-Tank 3% | Scavenger-Skirmisher 3% | Generator-Tank Dominant Class ---------------- Mutant | -10/Materials Scavenger-Mutant | -10/Mines Mutant | -9/Materials Scavenger-Mutant | -9/Mines Scavenger-Mutant | -9/Exiles Scavenger-Mutant | -8/Mines Scavenger-Mutant | -8/Materials Mutant | -8/Garrison Mutant | -8/Materials Mutant | -8/Garrison Mutant | -7/Factory Mutant | -7/Waste Scavenger-Scout | -7/Factory Scavenger-Mutant | -7/Lower Caves Mutant | -7/Lower Caves Mutant | -7/Data Miner Derelict-Mutant | -6/Proximity Caves Derelict-Mutant | -6/Factory Scavenger-Mutant | -6/Garrison Scavenger-Mutant | -6/Factory Scavenger-Tank | -5/Factory Scavenger-Tank | -5/Extension Scavenger-Mutant | -5/Cetus Scavenger-Skirmisher | -5/Archives Scavenger-Tank | -5/Hub_04(d) Scavenger-Mutant | -4/Factory Machinist-Tank | -4/Upper Caves Machinist-Tank | -4/Upper Caves Tank | -4/Warlord Tank | -3/Proximity Caves Scavenger-Tank | -3/Research Mutant | -2/Research Scavenger-Tank | -1/Access Resources | -11 -10 -10 -9 -9 -9 -8 -8 -8 -8 -8 -7 -7 -7 -7 -7 -7 -6 -6 -6 -6 -5 -5 -5 -5 -5 -4 -4 -4 -4 -3 -3 -2 -1 ----------- Run | Jun Mat Min Mat Min Exi Min Mat Gar Mat Gar Fac Was Fac Low Low Dat Pro Fac Gar Fac Fac Ext Cet Arc Hub Fac Upp Upp War Pro Res Res Acc Matter Collected 20949 | 135 265 140 185 70 . 90 414 502 657 584 105 . 427 176 116 . 164 280 1374 1020 3606 726 1442 234 639 1917 19 409 76 423 1771 928 2055 Remotely . | . . . . . . . . . . . . . . . . . . . . . . . . . . . . . . . . . . Salvage Created 49263 | . 440 188 723 36 . 181 1863 967 1245 562 155 . 635 155 283 . 422 1170 1449 1190 3077 672 1650 501 1427 5528 . 1095 507 671 7650 2945 11876 Parts 2170 | . 29 5 36 2 . 8 91 42 68 28 5 . 36 5 10 . 15 62 55 64 136 21 58 24 81 281 . 29 18 22 382 97 460 Haulers Intercepted 21 | . 1 . 2 . . . 3 . 2 . . . 1 . . . . . . . 2 . . . . 2 . . . . 1 . 7 Recyclers Shooed 21 | . . . 3 . . 1 3 . . . . . . . . . . 1 . . 1 . . . . 4 . . . . 6 . 2 Parts Field Recycled 3 | . . . . . . . . . . . . . 3 . . . . . . . . . . . . . . . . . . . . Retrieved Matter 18 | . . . . . . . . . . . . . 18 . . . . . . . . . . . . . . . . . . . . Parts Self-Destructed 82 | . . . . . . . . . . . . . . 5 12 . 16 . . . . . . . . . . 25 . 24 . . . Prevented 3 | . . . . . . . . . . . . . . . . . . . . . . . . . . . . . . 3 . . . Kills | -11 -10 -10 -9 -9 -9 -8 -8 -8 -8 -8 -7 -7 -7 -7 -7 -7 -6 -6 -6 -6 -5 -5 -5 -5 -5 -4 -4 -4 -4 -3 -3 -2 -1 ------- Run | Jun Mat Min Mat Min Exi Min Mat Gar Mat Gar Fac Was Fac Low Low Dat Pro Fac Gar Fac Fac Ext Cet Arc Hub Fac Upp Upp War Pro Res Res Acc Combat Hostiles Destroyed 806 | . 9 11 17 3 . 5 35 23 23 17 1 . 6 4 8 . 7 21 32 26 66 8 46 4 17 86 . 15 8 11 96 45 156 Melee 55 | . . . . . . . . . . . . . 6 4 3 . 7 21 8 . . . . . . . . . 1 . 5 . . Guns 300 | . 6 9 9 2 . 2 20 14 1 1 . . . . . . . . 7 . . . 21 4 17 74 . 15 7 11 28 13 39 Cannons 288 | . . 2 4 . . . . . 19 6 1 . . . . . . . 17 25 63 8 23 . . 9 . . . . 42 8 61 AOE 73 | . 3 . 4 . . 3 10 3 1 9 . . . . 5 . . . . 1 3 . . . . 1 . . . . . 9 21 Classes Destroyed 25 | . 4 1 2 . . 1 4 1 . . . . 1 . 1 . . . 2 . 4 1 . . . 1 . . . . . 2 . Worker 34 | . . . 1 . . . 2 . 1 . . . 2 . . . . . . 3 1 . . . 6 9 . . . . 4 . 5 Builder 11 | . . . . . . . . . . . . . . . . . . . . . 4 . . . . 5 . . . . 1 . 1 Tunneler 4 | . . . . . . . 2 . . . . . . . . . . . . . . . . . . 1 . . . . . . 1 Hauler 21 | . 1 . 2 . . . 3 . 2 . . . 1 . . . . . . . 2 . . . . 2 . . . . 1 . 7 Recycler 18 | . . . . . . 2 2 . . . 1 . 2 . . . . . . 1 1 2 . . . 2 . . . . 2 . 3 Mechanic 5 | . . . . . . . . . . . . . . . . . . . . . 1 . . . . 1 . . . . . . 3 Operator 15 | . . . . . . . 2 . 1 . 1 . 1 . . . . . . 1 2 . . 3 . 2 . . . . . . 2 Watcher 65 | . 3 . 2 . . . 3 . 3 1 . . 5 . . . . . . 4 8 2 1 . 5 8 . . . . 10 1 9 Swarmer 150 | . 3 3 7 3 . 5 12 8 4 4 . . . 2 2 . 1 2 3 . . . 14 . . 28 . . . 4 11 8 26 Cutter 4 | . . . . . . . . . . . . . . . . . . . . . . . . . . 4 . . . . . . . Saboteur 5 | . . . . . . . . . . . . . . . . . . . . . 1 . . . . . . . 1 1 . . 2 Grunt 248 | . 6 . 6 . . . 13 8 11 2 . . 2 . 4 . 3 9 15 16 23 2 21 . 6 11 . 9 1 3 16 12 49 Brawler 26 | . . . . . . . 1 2 . 1 . . . . . . . 2 3 . 2 . 1 . . . . 2 2 1 4 1 4 Duelist 16 | . . . . . . . . 2 . . . . . . 1 . . 2 2 1 1 . 1 . . . . . . 1 . 1 4 Protector 12 | . . . . . . . . . . . . . . . 1 . . 1 1 2 1 . . . 1 . . . 3 . . . 2 Sentry 74 | . . . 5 . . . 8 2 8 4 1 . . 1 . . 1 2 4 1 6 4 . 4 2 8 . 1 . 1 5 . 6 Demolisher 4 | . . . . . . . . . . . . . . . . . . . 1 . . . . . . . . . 1 . . 2 . Specialist 4 | . . . . . . . . . . . . . . . . . . . 1 . . . . . . 3 . . . . . . . Hunter 47 | . . . . . . . 1 1 . 6 . . . 1 . . 2 . 1 1 8 . . . 1 6 . . . . 3 5 11 Programmer 168 | . . . . . . . . . . . . . 4 . . . . 2 1 5 21 . 1 . 4 26 . . . . 55 1 48 Heavy 3 | . . . . . . . . . . . . . . . . . . . . . 3 . . . . . . . . . . . . Behemoth 6 | . . . . . . . . . . . . . . . . . . . . . . 2 . . . . . . . . 2 2 . Cetus Guard 8 | . . . . . . . . . . . . . . . . . . . . . . . 8 . . . . . . . . . . Lightning 3 | . . . . . . . . . . . . . . . . . . . . . . . . . 3 . . . . . . . . Striker 8 | . . . . . . . . . . . . . . . . . . . . . . . . . . . . . . . . 7 1 Executioner 9 | . . . . . . . . . . . . . . . . . . . . . . . . . . . . . . . . 6 3 Decomposer 1 | . . . . . . . . . . . . . . . 1 . . . . . . . . . . . . . . . . . . Assembled 8 | . . 8 . . . . . . . . . . . . . . . . . . . . . . . . . . . . . . . Thug 4 | . . . . . . . . . . . . . . . . . . 1 . . . . . . . . . 3 . . . . . Savage 1 | . . . . . . . . . . . . . . . . . . . . . 1 . . . . . . . . . . . . Guerrilla 1 | . . . . . . . . . . . . . . . . . . . . . . 1 . . . . . . . . . . . Best Kill Streak 25 | . 5 3 4 3 . 3 11 4 3 8 1 . 2 3 7 . 3 6 6 8 7 3 12 2 5 6 . 6 4 4 5 10 25 Combat Bots Only 22 | . 5 3 3 3 . 3 11 4 3 8 1 . 2 3 7 . 3 6 6 6 6 2 12 1 4 6 . 6 4 4 4 10 22 Max Kills in Single Turn 5 | . 2 2 3 1 . 3 4 3 2 5 1 . 1 1 2 . 1 1 2 2 3 1 2 2 2 2 . 2 2 1 2 3 4 Gunslinging 1 | . . 1 . . . . 1 1 . . . . . . . . . . . . . . 1 . 1 1 . 1 1 . . . . Exploded 4 | . 2 . 3 . . 3 4 1 1 4 . . . . 2 . . . . 1 2 . . . . 1 . . . . . 3 3 Melee 1 | . . . . . . . . . . . . . 1 1 1 . 1 1 1 . . . . . . . . . 1 . 1 . . Uniques/NPCs Destroyed . | . . . . . . . . . . . . . . . . . . . . . . . . . . . . . . . . . . Combat | -11 -10 -10 -9 -9 -9 -8 -8 -8 -8 -8 -7 -7 -7 -7 -7 -7 -6 -6 -6 -6 -5 -5 -5 -5 -5 -4 -4 -4 -4 -3 -3 -2 -1 -------- Run | Jun Mat Min Mat Min Exi Min Mat Gar Mat Gar Fac Was Fac Low Low Dat Pro Fac Gar Fac Fac Ext Cet Arc Hub Fac Upp Upp War Pro Res Res Acc Damage Taken 37450 | . 173 319 666 46 . 44 1098 390 687 805 72 135 278 210 614 . 1819 1354 2230 1434 2444 444 5877 243 975 1376 . 278 2266 266 2785 5071 3051 Core 2930 | . 29 63 143 12 . 7 85 27 58 65 6 44 61 4 156 . 323 164 225 20 80 . 370 20 46 122 . 4 179 7 132 354 124 Absorbed by Shields 11849 | . . . . . . . 108 32 204 216 25 32 . . . . . . . . 951 105 587 . 314 1365 . 303 708 261 1682 1868 3088 Reduced by Siege Mode 2284 | . . . . . . . . . . . . . . . . . . . 132 72 163 10 294 6 . 15 . 9 65 10 120 799 589 Redirected to Shielding 378 | . 16 22 . . . . . . . . . . . . . . . . . . 172 . . . . 53 . . 115 . . . . Regen/Repaired (Parts) 5770 | . . . 46 . . . 85 . . . . . 123 . . . . 232 . . 2279 10 50 . . 384 95 38 170 208 456 68 1526 Core Remaining (%) 65 | 100 . 63 . . . 59 . . . 57 . . . . . . 15 . . 51 . . . . 48 . . . . 72 89 75 92 Volleys Fired 2130 | . 17 31 57 6 . 9 97 68 63 44 5 1 . . 5 . . . 71 70 147 28 102 29 58 322 . 31 19 32 295 167 356 Largest 5 | . 2 2 2 2 . 2 2 2 2 2 2 2 . . 1 . . . 3 2 2 2 4 4 4 4 . 4 4 4 5 5 5 Hottest 560 | . 80 80 130 130 . 130 130 275 150 100 100 60 . . 39 . . . 153 128 150 150 309 447 404 560 . 390 390 275 489 452 465 Shots Fired 4697 | . 34 43 98 12 . 18 175 127 121 88 9 2 . . 5 . . . 173 108 250 55 192 53 165 716 . 100 61 79 738 341 934 Gun 2950 | . 34 36 70 12 . 18 170 127 13 54 3 . . . . . . . 60 . . . 109 53 165 659 . 100 61 79 374 197 556 Cannon 1707 | . . 7 22 . . . . . 108 27 6 2 . . . . . . 113 108 250 55 83 . . 57 . . . . 364 139 366 Launcher 40 | . . . 6 . . . 5 . . 7 . . . . 5 . . . . . . . . . . . . . . . . 5 12 Special . | . . . . . . . . . . . . . . . . . . . . . . . . . . . . . . . . . . Kinetic 1212 | . . . . . . . . . . . . . . . . . . . 173 108 250 55 97 6 102 223 . 60 34 31 37 14 22 Thermal 2092 | . . 7 92 12 . 18 80 14 120 27 6 2 . . . . . . . . . . 95 47 63 436 . 40 27 48 405 139 414 Explosive 40 | . . . 6 . . . 5 . . 7 . . . . 5 . . . . . . . . . . . . . . . . 5 12 Electromagnetic 1353 | . 34 36 . . . . 90 113 1 54 3 . . . . . . . . . . . . . . 57 . . . . 296 183 486 Robot Hit Streak 60 | . 16 6 17 23 . 12 27 26 21 26 9 11 . . 16 . . . 45 28 53 24 53 25 21 34 . 35 50 19 60 52 48 Robot Miss Streak 5 | . 1 1 1 2 . 1 2 4 1 1 . . . . . . . . 2 1 2 1 2 1 3 5 . 2 4 4 2 2 2 Penetration Max 2 | . . . . . . . . . . . . . . . . . . . 2 1 1 . 1 1 1 1 . 1 1 . 1 . . Secondary Targets 47 | . . 2 . . . 1 2 1 . . . . . . . . . . . . . . 8 . 5 7 . 3 3 1 2 2 10 Max Gunslinging Chain 2 | . . 1 . . . 1 1 1 . . . . . . . . . . . . . . 1 . 2 1 . 1 1 1 1 1 1 Shots Hit Robots 3510 | . 28 30 70 8 . 14 149 70 92 36 9 2 43 12 13 . 27 60 158 85 192 43 163 34 102 478 . 75 49 55 534 243 636 Core Hits 1564 | . 14 18 35 2 . 9 82 37 33 24 4 . 15 4 18 . 11 29 58 36 78 16 77 18 48 183 . 33 27 21 178 102 354 Critical Kills 50 | . . . . . . . . . 1 . . . . . . . . . . . . . 1 1 8 20 . 4 4 1 9 . 1 Critical Parts Destroyed 37 | . . . . . . . . . . . . . . . . . . . 1 . . . 1 . 5 17 . 6 2 . 5 . . Critical Strikes 191 | . 1 . 5 1 . 2 2 . 1 . . . 4 1 1 . 5 5 8 13 23 4 17 2 13 39 . 10 7 1 17 1 8 Burn 15 | . . . 5 1 . 2 2 . . . . . . . . . . . . . . . 5 . . . . . . . . . . Meltdown 8 | . . . . . . . . . 1 . . . . . . . . . . . . . . . . . . . . . 6 . 1 Destroy 83 | . . . . . . . . . . . . . . . . . . . 1 . . . 2 2 13 39 . 10 7 1 8 . . Blast 53 | . . . . . . . . . . . . . . . . . . . 2 13 23 4 10 . . . . . . . . . 1 Corrupt 11 | . 1 . . . . . . . . . . . . . . . . . . . . . . . . . . . . . 3 1 6 Sever 17 | . . . . . . . . . . . . . 4 1 1 . 5 3 3 . . . . . . . . . . . . . . Impale 4 | . . . . . . . . . . . . . . . . . . 2 2 . . . . . . . . . . . . . . Melee Attacks 264 | . . . . . . . . 3 . . . . 94 15 10 . 32 72 38 . . . . . . . . . . . . . . Impact 4 | . . . . . . . . 3 . . . . . . 1 . . . . . . . . . . . . . . . . . . Slashing 236 | . . . . . . . . . . . . . 94 15 9 . 32 59 27 . . . . . . . . . . . . . . Piercing 24 | . . . . . . . . . . . . . . . . . . 13 11 . . . . . . . . . . . . . . Sneak Attacks 13 | . . . . . . . . . . . . . 10 1 . . . 1 1 . . . . . . . . . . . . . . Combat Hostiles 2 | . . . . . . . . . . . . . . 1 . . . . 1 . . . . . . . . . . . . . . Follow-up Attacks 32 | . . . . . . . . . . . . . 11 1 . . 2 11 7 . . . . . . . . . . . . . . Damage Inflicted 137078 | . 648 375 1282 121 . 401 3711 2023 2618 1575 256 53 2026 589 1496 . 987 2643 5326 5593 14205 2931 6363 1416 3133 15846 . 2536 1496 1572 18958 9020 27879 Guns 55913 | . 397 286 761 121 . 221 2679 1586 198 264 61 . . . . . . . 888 . . . 2019 1416 2973 13895 . 2536 1478 1572 7414 4160 10988 Cannons 57306 | . . 89 337 . . . . . 2384 530 164 53 . . . . . . 2839 4875 13662 2921 4340 . . 1450 . . . . 10989 2209 10464 Explosions 15078 | . 251 . 167 . . 180 1006 437 26 781 31 . . . 1062 . . . . 717 505 . . . 142 469 . . . . 238 2651 6415 Melee 8278 | . . . . . . . . . . . . . 2026 589 434 . 987 2643 1599 . . . . . . . . . . . . . . Ramming 503 | . . . 17 . . . 26 . 10 . . . . . . . . . . 1 38 10 4 . 18 32 . . 18 . 317 . 12 Kinetic 41410 | . . . . . . . . . . . . . . . . . . . 3727 4875 13662 2921 4576 189 1809 5105 . 1425 921 367 925 316 592 Thermal 51045 | . 251 89 1098 121 . 401 1237 710 2582 530 195 53 . . . . . . . 585 505 . 1783 1227 1164 9143 . 1111 557 1205 12422 2576 11500 Explosive 11316 | . . . 167 . . . 807 . . 781 . . . . 1062 . . . . 132 . . . . . 116 . . . . . 2284 5967 Electromagnetic 24526 | . 397 286 . . . . 1641 1313 26 264 61 . . . . . . . . . . . . . 142 1450 . . . . 5294 3844 9808 Impact 100 | . . . . . . . . . . . . . . . 100 . . . . . . . . . . . . . . . . . . Slashing 7600 | . . . . . . . . . . . . . 2026 589 334 . 987 2415 1249 . . . . . . . . . . . . . . Piercing 578 | . . . . . . . . . . . . . . . . . . 228 350 . . . . . . . . . . . . . . Highest Corruption 9 | . . . . . . . 7 8 8 9 . . 3 3 3 3 3 2 2 1 2 2 1 1 6 8 8 8 8 4 3 6 2 Average Corruption 4 | . . . . . . . 6 7 8 8 . . 2 3 3 3 3 1 1 1 1 1 1 1 4 3 8 8 7 4 2 4 1 Corruption Purged 29 | . . . . . . . . . . . . . . . . . . . 2 . 4 2 . 1 7 . . . . . 3 6 4 Corruption Blocked 62 | . . . . . . . . . . . . . . . . . . . . . . . . . . . . . . . . 62 . Effects 601 | . . . . . . . 35 58 101 64 . . 33 10 7 1 7 3 13 12 13 9 10 6 9 73 10 56 2 23 29 3 14 Message Errors 157 | . . . . . . . 10 7 31 20 . . 8 2 2 1 2 1 1 3 2 1 3 3 3 22 5 11 . 5 10 1 3 Matter Fused 159 | . . . . . . . 4 17 26 14 . . 11 6 2 . 4 . 5 2 5 2 1 2 2 16 2 16 . 4 11 1 6 Heat Flow Errors 53 | . . . . . . . 2 2 13 6 . . 7 . 2 . . . 1 . 2 1 2 . . 5 . 3 . 2 4 . 1 Energy Discharges 72 | . . . . . . . 5 11 11 6 . . 2 . . . 1 1 3 3 . 2 2 . 1 9 1 8 1 2 1 1 1 Parts Rejected 6 | . . . . . . . . 2 . . . . . . . . . . 1 . 1 . . . 1 1 . . . . . . . Parts Fused 2 | . . . . . . . . . . . . . 1 . . . . . . . . . . . . . . 1 . . . . . Data Loss (minor) 61 | . . . . . . . 6 8 9 6 . . 4 1 1 . . . . 1 2 2 1 1 . 7 2 5 1 2 1 . 1 Data Loss (major) 32 | . . . . . . . 4 1 4 5 . . . 1 . . . 1 2 1 . . . . . 3 . 5 . 4 1 . . Misfires 26 | . . . . . . . 4 3 1 4 . . . . . . . . . 2 1 1 . . 1 6 . 1 . 1 1 . . Alerts 12 | . . . . . . . . 1 3 2 . . . . . . . . . . . . . . . 1 . 3 . 1 . . 1 Weapon Failures 21 | . . . . . . . . 6 3 1 . . . . . . . . . . . . 1 . 1 3 . 3 . 2 . . 1 Overload Shots 70 | . . . . . . . . 1 . . . . . . . . . . . . . . 1 15 7 37 . 4 1 . 4 . . Effects 4 | . . . . . . . . . . . . . . . . . . . . . . . . 1 . 3 . . . . . . . Energy Bleed 1 | . . . . . . . . . . . . . . . . . . . . . . . . 1 . . . . . . . . . Heat Surge 1 | . . . . . . . . . . . . . . . . . . . . . . . . . . 1 . . . . . . . Short Circuit 2 | . . . . . . . . . . . . . . . . . . . . . . . . . . 2 . . . . . . . Overflow Damage 5678 | . . 13 . . . 16 33 26 74 30 13 . 346 87 124 . 4 205 130 726 1793 169 192 . 26 177 . . . . 702 153 639 Projectiles 4080 | . . 13 . . . . . . 74 5 . . . . . . . . 18 548 1789 169 192 . . 68 . . . . 667 125 412 Explosions 701 | . . . . . . 16 33 26 . 25 13 . . . 18 . . . . 178 2 . . . 26 109 . . . . . 28 227 Melee 897 | . . . . . . . . . . . . . 346 87 106 . 4 205 112 . 2 . . . . . . . . . 35 . . Knockbacks 137 | . . . . . . . . . . . . . . . . . . . 17 32 65 5 8 . . 1 . . 1 . 5 . 3 Impact 7 | . . . . . . . . . . . . . . . . . . . . . . . . . . 1 . . 1 . 5 . . Kinetic 120 | . . . . . . . . . . . . . . . . . . . 15 28 61 5 8 . . . . . . . . . 3 Secondary 10 | . . . . . . . . . . . . . . . . . . . 2 4 4 . . . . . . . . . . . . Self-Inflicted Damage 1128 | . 27 . 41 . . . 67 . . 106 24 . . . 69 . . . 17 72 56 . . . 77 . . . . . 60 265 247 Shots 33 | . 2 . 2 . . . 1 . . 5 1 . . . 3 . . . 1 2 1 . . . 1 . . . . . 2 6 6 Rammed 44 | . . . 5 . . . 1 . 1 . . . . . . . . . . 1 2 1 2 . 2 3 . . 3 . 22 . 1 Targets Rammed 52 | . . . 5 . . . 1 . 1 . . . . . . . . . . 1 2 1 2 . 2 4 . . 4 . 28 . 1 Kicked . | . . . . . . . . . . . . . . . . . . . . . . . . . . . . . . . . . . Crushed 8 | . . . . . . . . . . . . . . . . . . . . . . . . . . 1 . . 1 . 6 . . Highest Temperature 543 | . 178 170 348 . . 234 257 356 387 320 63 . 226 . 123 . 43 4 429 173 387 102 415 512 403 465 . 233 257 407 543 301 525 Average Temperature 86 | . 47 61 113 . . 93 78 67 100 92 32 . 88 . 67 . 17 1 83 55 52 14 141 169 105 79 . 63 139 119 101 64 115 Received Heat Transfer 9377 | . 42 80 282 . . . 665 158 382 253 20 . 18 6 180 . 477 354 921 577 489 48 2034 27 193 184 . 148 354 86 700 238 461 Effects 29 | . . . 7 . . . 1 1 1 1 . . . . . . . . 1 . 2 . 1 2 . 1 . . 3 . 7 . 1 Shutdowns 4 | . . . 1 . . . . . 1 . . . . . . . . . . . . . . 2 . . . . . . . . . Energy Bleed 9 | . . . 1 . . . 1 . . 1 . . . . . . . . . . 1 . . . . 1 . . . . 4 . . Interference 13 | . . . 5 . . . . . . . . . . . . . . . 1 . . . 1 . . . . . 3 . 3 . . Matter Decay 2 | . . . . . . . . 1 . . . . . . . . . . . . 1 . . . . . . . . . . . . Short Circuit 1 | . . . . . . . . . . . . . . . . . . . . . . . . . . . . . . . . . 1 Siege Activations 219 | . . . . . . . . . . . . . . . . . . . 10 12 42 9 6 2 . 17 . 6 1 4 41 15 54 Total Turns 5136 | . . . . . . . . . . . . . . . . . . . 295 213 830 168 210 12 . 404 . 126 54 48 1091 512 1173 Longest Duration 144 | . . . . . . . . . . . . . . . . . . . 53 42 67 40 74 6 . 90 . 44 54 22 144 118 133 Robots Corrupted 88 | . . . . . . . 4 6 . 1 . . . . . . . . . . . . . . . 3 . . . . 18 15 41 Combat Hostiles 75 | . . . . . . . 4 6 . 1 . . . . . . . . . . . . . . . 1 . . . . 14 15 34 Parts Fried 243 | . 1 . . . . . 9 6 . . . . . . . . . . . . . . . . 1 13 . . 2 . 62 36 113 Impact Corruptions 8 | . . . . . . . . . . . . . . . 3 . . . . 1 2 . . . . . . . . . 2 . . Robots Melted 19 | . . . 1 1 . . 1 . 2 . . . . . . . . . . . . . 2 . . 1 . . . . 7 . 4 Combat Hostiles 15 | . . . . 1 . . 1 . 2 . . . . . . . . . . . . . 2 . . 1 . . . . 7 . 1 Parts Melted 131 | . . . 1 1 . 1 3 1 9 1 1 . . . . . . . . . 1 . 6 2 3 22 . 1 . 4 58 . 16 Heat Transferred 47952 | . 250 185 2886 370 . 866 2740 895 3441 703 222 74 . . . . . . . 350 300 . 3454 1303 1309 10302 . 1273 429 1258 10068 805 4469 Parts Sabotaged . | . . . . . . . . . . . . . . . . . . . . . . . . . . . . . . . . . . Parts Stolen . | . . . . . . . . . . . . . . . . . . . . . . . . . . . . . . . . . . Parts Stripped . | . . . . . . . . . . . . . . . . . . . . . . . . . . . . . . . . . . Power Chain Reactions 24 | . 4 . . . . . 3 6 . . 1 . . . . . . . . . . . . . . 1 . . . . 3 2 4 Missiles Intercepted 3 | . . . . . . . . . . . . . . . . . . . . . . . . . . . . . . . . 3 . Alert | -11 -10 -10 -9 -9 -9 -8 -8 -8 -8 -8 -7 -7 -7 -7 -7 -7 -6 -6 -6 -6 -5 -5 -5 -5 -5 -4 -4 -4 -4 -3 -3 -2 -1 ------- Run | Jun Mat Min Mat Min Exi Min Mat Gar Mat Gar Fac Was Fac Low Low Dat Pro Fac Gar Fac Fac Ext Cet Arc Hub Fac Upp Upp War Pro Res Res Acc Peak Influence 2945 | . 243 128 344 94 . 226 511 1318 574 1122 674 168 322 . . . . 381 2945 2048 1239 165 400 211 479 325 . . . . 378 732 2761 Initial 1339 | . . 13 . . . . 8 162 553 . 510 138 81 . . . . 66 234 1339 1100 13 18 87 18 96 . . . . 47 . 279 Average 388 | . 93 47 144 79 . 29 278 799 291 606 587 143 123 . . . . 72 1373 1837 780 40 228 100 181 104 . . . . 89 115 456 Maximum Alert Level 5 | . 1 . 1 . . 1 2 4 2 4 2 . 1 . . . . 1 5 5 4 . 2 1 2 1 . . . . 1 3 5 Low Security (%) 54 | 100 94 100 68 100 . 99 21 10 37 6 . 100 75 . . . . 89 . . 1 100 20 84 53 86 . . . . 90 81 45 Level 1 17 | . 5 . 31 . . . 61 8 26 22 . . 24 . . . . 10 11 . 10 . 72 15 43 13 . . . . 9 10 28 Level 2 10 | . . . . . . . 17 21 35 32 100 . . . . . . . 17 . 22 . 6 . 3 . . . . . . 5 14 Level 3 8 | . . . . . . . . 31 . 30 . . . . . . . . 21 . 50 . . . . . . . . . . 2 1 Level 4 3 | . . . . . . . . 28 . 7 . . . . . . . . 9 17 15 . . . . . . . . . . . . Level 5 4 | . . . . . . . . . . . . . . . . . . . 39 79 . . . . . . . . . . . . . High Security . | . . . . . . . . . . . . . . . . . . . . 3 . . . . . . . . . . . . . Max Security 1 | . . . . . . . . . . . . . . . . . . . . . . . . . . . . . . . . . 10 Sterilizations 1 | . . . . . . . . . . . . . . . . . . . . . . . . . . . . . . . . . 1 Squads Dispatched 184 | . 2 . 6 . . 1 8 . 5 . 3 . 14 . 1 . . 9 . 15 24 . . . 5 21 . . . 1 30 1 38 Investigation 40 | . 2 . 5 . . 1 4 . 3 . 2 . 7 . . . . 2 . 1 3 . . . 1 5 . . . . 4 . . Extermination 72 | . . . . . . . . . . . . . 3 . . . . 1 . 3 12 . . . 2 12 . . . . 20 . 19 Reinforcement 29 | . . . 1 . . . 2 . 2 . 1 . 2 . . . . 1 . 2 5 . . . 2 4 . . . . 2 1 4 Assault 32 | . . . . . . . . . . . . . 2 . 1 . . 1 . 9 4 . . . . . . . . 1 3 . 11 Garrison 11 | . . . . . . . 2 . . . . . . . . . . 4 . . . . . . . . . . . . 1 . 4 Intercept . | . . . . . . . . . . . . . . . . . . . . . . . . . . . . . . . . . . Searches Triggered . | . . . . . . . . . . . . . . . . . . . . . . . . . . . . . . . . . . Data Miner Redirects 24 | . . . . . . . . . . . . . . . . . . 1 . 8 5 . . . . 2 . . . . 5 . 3 Construction Impeded 2 | . . . . . . . 1 . . . . . . . . . . . . . . . . . 1 . . . . . . . . Haulers Reinforced 6 | . . . . . . . . . . . 1 . . . . . . . . . . . . . 1 1 . . . . . . 3 Active Scanning Responses . | . . . . . . . . . . . . . . . . . . . . . . . . . . . . . . . . . . Cargo Convoy Interrupts 1 | . . . . . . . . . . . . . . . . . . . . . 1 . . . . . . . . . . . . Stealth | -11 -10 -10 -9 -9 -9 -8 -8 -8 -8 -8 -7 -7 -7 -7 -7 -7 -6 -6 -6 -6 -5 -5 -5 -5 -5 -4 -4 -4 -4 -3 -3 -2 -1 --------- Run | Jun Mat Min Mat Min Exi Min Mat Gar Mat Gar Fac Was Fac Low Low Dat Pro Fac Gar Fac Fac Ext Cet Arc Hub Fac Upp Upp War Pro Res Res Acc Distress Signals 45 | . . . 4 . . 1 4 . 3 1 1 . 1 . . . . 1 . 3 4 1 2 . 1 1 . . . . 4 9 4 Communications Jammed 150 | . . . . . . . . . . . . . . . . . . . . . . . . . . 38 . . . . . . 112 Distress Signals 147 | . . . . . . . . . . . . . . . . . . . . . . . . . . 37 . . . . . . 110 Times Spotted 1184 | . 12 13 42 3 . 3 56 27 41 28 6 5 18 5 18 . 19 24 39 42 82 20 51 13 22 108 . 17 51 12 125 86 196 Peak Tracking Total 29 | . 5 3 5 3 . 4 8 6 4 11 3 5 4 3 9 . 4 6 6 6 6 6 11 1 5 6 . 7 29 5 6 9 18 Tactical Retreats 63 | . 1 1 . . . 1 1 3 1 1 . . 2 3 3 . 7 . 2 2 2 1 . . . 3 . 3 4 1 5 7 9 Traps | -11 -10 -10 -9 -9 -9 -8 -8 -8 -8 -8 -7 -7 -7 -7 -7 -7 -6 -6 -6 -6 -5 -5 -5 -5 -5 -4 -4 -4 -4 -3 -3 -2 -1 ------- Run | Jun Mat Min Mat Min Exi Min Mat Gar Mat Gar Fac Was Fac Low Low Dat Pro Fac Gar Fac Fac Ext Cet Arc Hub Fac Upp Upp War Pro Res Res Acc Traps Triggered 40 | . 2 . . . . . 1 7 . . 1 . 2 . . . . 1 4 2 1 1 . . . 9 . . . . 6 . 3 Indirectly . | . . . . . . . . . . . . . . . . . . . . . . . . . . . . . . . . . . Trap Hack Attempts . | . . . . . . . . . . . . . . . . . . . . . . . . . . . . . . . . . . Triggered . | . . . . . . . . . . . . . . . . . . . . . . . . . . . . . . . . . . Disarmed . | . . . . . . . . . . . . . . . . . . . . . . . . . . . . . . . . . . Reprogrammed . | . . . . . . . . . . . . . . . . . . . . . . . . . . . . . . . . . . Reused . | . . . . . . . . . . . . . . . . . . . . . . . . . . . . . . . . . . Traps Extracted . | . . . . . . . . . . . . . . . . . . . . . . . . . . . . . . . . . . Installed . | . . . . . . . . . . . . . . . . . . . . . . . . . . . . . . . . . . Triggered 18 | . . . . . . . . . . . . . . . . . . . . . 2 . . . . 1 . . 13 2 . . . Power Sources Rigged 83 | . . . . . . 6 6 10 21 6 4 . 2 1 . . . . 10 . 1 . 3 . . . . . 1 . . 12 . Exploded 60 | . . . . . . 5 2 8 16 7 3 2 2 . 1 . . . 8 . 1 . 3 . . . . . 1 . . 1 . Machines | -11 -10 -10 -9 -9 -9 -8 -8 -8 -8 -8 -7 -7 -7 -7 -7 -7 -6 -6 -6 -6 -5 -5 -5 -5 -5 -4 -4 -4 -4 -3 -3 -2 -1 ---------- Run | Jun Mat Min Mat Min Exi Min Mat Gar Mat Gar Fac Was Fac Low Low Dat Pro Fac Gar Fac Fac Ext Cet Arc Hub Fac Upp Upp War Pro Res Res Acc Machines Disabled 160 | . . . 1 1 . 9 2 6 3 6 1 . 2 1 . . . 1 10 22 22 1 5 5 15 23 . . . . 10 6 8 Max in Single Turn 12 | . . . 1 1 . 9 1 1 1 1 . . 1 1 . . . 1 2 7 5 1 1 1 6 12 . . . . 1 2 1 Garrison Access 21 | . . . . . . . . . . . . . 2 . . . . 1 . . 2 . . . 1 2 . . . . 4 4 5 Garrison Relay 13 | . . . . . . . . 5 . 4 . . . . . . . . 4 . . . . . . . . . . . . . . Phase Generator 1 | . . . . . . . . . . . . . . . . . . . 1 . . . . . . . . . . . . . . Network Hub 1 | . . . . . . . . . . . . . . . . . . . . . . . . . 1 . . . . . . . . Energy Cycler 2 | . . . . . . . . . . . . . . . . . . . . . . 1 . . . . . . . . . . 1 Machines Repaired . | . . . . . . . . . . . . . . . . . . . . . . . . . . . . . . . . . . Machines Sabotaged . | . . . . . . . . . . . . . . . . . . . . . . . . . . . . . . . . . . Overloaded Fab Kills . | . . . . . . . . . . . . . . . . . . . . . . . . . . . . . . . . . . Hacking | -11 -10 -10 -9 -9 -9 -8 -8 -8 -8 -8 -7 -7 -7 -7 -7 -7 -6 -6 -6 -6 -5 -5 -5 -5 -5 -4 -4 -4 -4 -3 -3 -2 -1 --------- Run | Jun Mat Min Mat Min Exi Min Mat Gar Mat Gar Fac Was Fac Low Low Dat Pro Fac Gar Fac Fac Ext Cet Arc Hub Fac Upp Upp War Pro Res Res Acc Machines Accessed 198 | . 7 1 13 . 1 1 15 3 11 4 3 . 17 . 1 4 . 4 1 1 18 6 3 1 10 33 . . 4 . 21 . 15 Terminals 122 | . 5 . 7 . . 1 11 3 8 4 2 . 11 . . . . . 1 1 11 6 3 . 9 18 . . . . 10 . 11 Fabricators 11 | . . . . . . . . . . . 1 . 1 . . . . . . . 2 . . . . 4 . . . . 3 . . Repair Stations 17 | . . . 2 . . . 1 . . . . . 1 . . . . 1 . . 2 . . . . 5 . . . . 3 . 2 Recycling Units 16 | . 2 . 2 . . . 1 . 1 . . . 4 . . . . 1 . . . . . . . 2 . . . . 2 . 1 Scanalyzers 8 | . . . 2 . . . 1 . 1 . . . . . . . . . . . 1 . . . . 2 . . . . 1 . . Garrison Access 12 | . . . . . . . 1 . 1 . . . . . . . . 2 . . 2 . . . 1 2 . . . . 2 . 1 Total Hacks 685 | . 24 1 45 . 1 3 53 5 39 11 11 . 41 . 1 30 . 8 2 3 69 14 6 25 37 141 . . 9 . 53 . 53 Successful 386 | . 17 1 32 . 1 2 33 2 21 4 3 . 19 . 1 30 . 5 . 1 35 7 3 25 21 69 . . 9 . 19 . 26 Failed 296 | . 6 . 12 . . 1 20 3 18 7 8 . 22 . . . . 3 2 2 34 7 3 . 15 72 . . . . 34 . 27 Catastrophic 43 | . 1 . 1 . . . 1 1 3 1 3 . 2 . . . . 1 1 . 2 . 1 . 1 9 . . . . 8 . 7 Database Lockouts 3 | . 1 . 1 . . . . . . . . . . . . . . . . . . . . . 1 . . . . . . . . Manual 382 | . 20 . 27 . 1 . 34 . 26 7 8 . 28 . . . . 2 . 3 46 10 . 1 33 74 . . 1 . 31 . 30 Terminals 437 | . 20 . 33 . . 3 40 5 31 11 8 . 28 . . . . . 2 3 48 14 6 . 36 90 . . . . 25 . 34 Fabricators 29 | . . . . . . . . . . . 3 . 3 . . . . . . . 8 . . . . 10 . . . . 5 . . Repair Stations 55 | . . . 5 . . . 2 . . . . . 3 . . . . 3 . . 5 . . . . 16 . . . . 10 . 11 Recycling Units 37 | . 4 . 2 . . . 5 . 4 . . . 7 . . . . 2 . . . . . . . 4 . . . . 5 . 4 Scanalyzers 31 | . . . 5 . . . 3 . 2 . . . . . . . . . . . 2 . . . . 16 . . . . 3 . . Garrison Access 29 | . . . . . . . 3 . 2 . . . . . . . . 3 . . 6 . . . 1 5 . . . . 5 . 4 Terminal Hacks 168 | . 11 1 15 . 1 2 12 2 9 2 1 . 5 . 1 30 . . . . 8 2 3 25 9 16 . . 9 . 1 . 3 Record 44 | . 1 . . . . . . . . . . . . . . 11 . . . . . . 3 25 . 1 . . 2 . . . 1 Part Schematic 12 | . 1 . . . . . . . . . . . . . . 11 . . . . . . . . . . . . . . . . . Robot Schematic 5 | . . . . . . . . . . . . . . . . 5 . . . . . . . . . . . . . . . . . Robot Analysis 17 | . 1 . 5 . . . 4 . 2 . . . . . . . . . . . 1 . . . 2 1 . . . . . . 1 Prototype ID Bank 19 | . 2 . 3 . . . 2 . 1 . . . . . . 3 . . . . . . . . . 3 . . 5 . . . . Open Door 5 | . . 1 . . . . . . . . . . . . 1 . . . . . . 1 . . . . . . 2 . . . . Level Access Points 2 | . 1 . 1 . . . . . . . . . . . . . . . . . . . . . . . . . . . . . . Branch Access Points 6 | . 1 . 1 . . . 1 . 1 . . . . . . . . . . . 1 . . . . 1 . . . . . . . Emergency Access Points 3 | . . . . . . . . 1 . 1 . . 1 . . . . . . . . . . . . . . . . . . . . Machine Index 1 | . . . . . . . . . . . . . . . . . . . . . . . . . . . . . . . . . 1 Terminal Index 10 | . 1 . 1 . . . 1 . 1 . 1 . 1 . . . . . . . 1 . . . 2 1 . . . . . . . Fabricator Index 2 | . . . . . . . . . . . . . . . . . . . . . 1 . . . . 1 . . . . . . . Repair Station Index 1 | . . . . . . . . . . . . . . . . . . . . . . . . . . 1 . . . . . . . Scanalyzer Index 2 | . . . 1 . . . . . . . . . . . . . . . . . . . . . 1 . . . . . . . . Alert Level 7 | . . . . . . . . . . . . . 1 . . . . . . . 1 1 . . 1 2 . . . . 1 . . Unreport Threat 9 | . 1 . 2 . . . 1 . 1 . . . . . . . . . . . 2 . . . 1 1 . . . . . . . Locate Traps 4 | . . . . . . . 1 . 1 . . . . . . . . . . . . . . . . 2 . . . . . . . Dispatch Records 1 | . . . . . . 1 . . . . . . . . . . . . . . . . . . . . . . . . . . . Recall Investigation 2 | . . . . . . . . . . . . . 1 . . . . . . . . . . . . 1 . . . . . . . Registered Prototypes 1 | . . . . . . . . . 1 . . . . . . . . . . . . . . . . . . . . . . . . Zone Layout 12 | . 2 . 1 . . 1 2 . 1 . . . 1 . . . . . . . 1 . . . 2 1 . . . . . . . Garrison Registry 2 | . . . . . . . . 1 . 1 . . . . . . . . . . . . . . . . . . . . . . . EX-Prototype ID Bank 1 | . . . . . 1 . . . . . . . . . . . . . . . . . . . . . . . . . . . . Fabricator Hacks 11 | . . . . . . . . . . . . . . . . . . . . . 3 . . . . 8 . . . . . . . Network Status 1 | . . . . . . . . . . . . . . . . . . . . . . . . . . 1 . . . . . . . Load Schematic 5 | . . . . . . . . . . . . . . . . . . . . . 2 . . . . 3 . . . . . . . Build 5 | . . . . . . . . . . . . . . . . . . . . . 1 . . . . 4 . . . . . . . Repair Station Hacks 37 | . . . 4 . . . 2 . . . . . 2 . . . . 2 . . 4 . . . . 10 . . . . 5 . 8 Scan Component 20 | . . . 2 . . . 1 . . . . . 1 . . . . 1 . . 2 . . . . 6 . . . . 3 . 4 Repair 17 | . . . 2 . . . 1 . . . . . 1 . . . . 1 . . 2 . . . . 4 . . . . 2 . 4 Recycling Unit Hacks 8 | . 1 . . . . . 2 . 2 . . . 2 . . . . . . . . . . . . 1 . . . . . . . Retrieve Matter 2 | . . . . . . . 1 . 1 . . . . . . . . . . . . . . . . . . . . . . . . Retrieve Components 6 | . 1 . . . . . 1 . 1 . . . 2 . . . . . . . . . . . . 1 . . . . . . . Scanalyzer 18 | . . . 4 . . . 3 . . . . . . . . . . . . . . . . . . 10 . . . . 1 . . Insert Component 10 | . . . 2 . . . 2 . . . . . . . . . . . . . . . . . . 5 . . . . 1 . . Analyze 8 | . . . 2 . . . 1 . . . . . . . . . . . . . . . . . . 5 . . . . . . . Garrison Access Hacks 9 | . . . . . . . 1 . 1 . . . . . . . . 1 . . 1 . . . 1 2 . . . . 1 . 1 Unlock Access 3 | . . . . . . . 1 . 1 . . . . . . . . 1 . . . . . . . . . . . . . . . Seal Access 6 | . . . . . . . . . . . . . . . . . . . . . 1 . . . 1 2 . . . . 1 . 1 Unauthorized Hacks 135 | . 5 . 9 . . . 13 . 9 2 2 . 10 . . . . 2 . 1 19 5 . . 11 22 . . . . 11 . 14 Terminals 112 | . 3 . 7 . . . 11 . 8 2 2 . 6 . . . . . . 1 16 5 . . 11 21 . . . . 7 . 12 Assimilate 9 | . . . 1 . . . . . . . . . 2 . . . . . . . 4 . . . . . . . . . 1 . 1 Botnet 85 | . 3 . 6 . . . 10 . 7 1 2 . 4 . . . . . . 1 9 5 . . 9 14 . . . . 5 . 9 Disrupt 12 | . . . . . . . 1 . 1 1 . . . . . . . . . . 1 . . . 1 5 . . . . 1 . 1 Operators 6 | . . . . . . . . . . . . . . . . . . . . . 2 . . . 1 2 . . . . . . 1 Fabricators 5 | . . . . . . . . . . . . . . . . . . . . . 3 . . . . . . . . . 2 . . Report 1 | . . . . . . . . . . . . . . . . . . . . . 1 . . . . . . . . . . . . Liberate 1 | . . . . . . . . . . . . . . . . . . . . . 1 . . . . . . . . . . . . Haulers 1 | . . . . . . . . . . . . . . . . . . . . . 1 . . . . . . . . . . . . Recompile 2 | . . . . . . . . . . . . . . . . . . . . . . . . . . . . . . . 2 . . Repair Stations . | . . . . . . . . . . . . . . . . . . . . . . . . . . . . . . . . . . Recycling Units 17 | . 2 . 2 . . . 1 . 1 . . . 4 . . . . 2 . . . . . . . 1 . . . . 2 . 2 Monitor 1 | . . . . . . . . . . . . . . . . . . . . . . . . . . . . . . . 1 . . Recyclers 2 | . . . . . . . . . . . . . . . . . . . . . . . . . . . . . . . 1 . 1 Mask 2 | . . . . . . . . . . . . . . . . . . 1 . . . . . . . . . . . . . . 1 Tunnel 12 | . 2 . 2 . . . 1 . 1 . . . 4 . . . . 1 . . . . . . . 1 . . . . . . . Scanalyzers . | . . . . . . . . . . . . . . . . . . . . . . . . . . . . . . . . . . Garrison Access 1 | . . . . . . . 1 . . . . . . . . . . . . . . . . . . . . . . . . . . Broadcast 1 | . . . . . . . 1 . . . . . . . . . . . . . . . . . . . . . . . . . . Data Cores Recovered 9 | . . . . . . . 2 . 1 . 1 . . . . . . . . . 1 . . . . 2 . . . . . . 2 Used . | . . . . . . . . . . . . . . . . . . . . . . . . . . . . . . . . . . Hacking Detections 169 | . 6 . 9 . . 1 13 3 11 4 3 . 15 . . . . 4 1 1 18 5 3 . 9 29 . . . . 19 . 15 Full Trace Events 29 | . 1 . 1 . . 1 3 2 3 2 2 . 2 . . . . 1 1 1 3 . . . 1 4 . . . . 1 . . Feedback Events 4 | . . . . . . . 1 1 . 1 . . . . . . . . . . 1 . . . . . . . . . . . . Corruption 4 | . . . . . . . 1 1 . 1 . . . . . . . . . . 1 . . . . . . . . . . . . Feedback Blocked . | . . . . . . . . . . . . . . . . . . . . . . . . . . . . . . . . . . Robot Schematics Acquired 5 | . . . . . . . . . . . . . . . . 5 . . . . . . . . . . . . . . . . . Robots Built . | . . . . . . . . . . . . . . . . . . . . . . . . . . . . . . . . . . Authchips . | . . . . . . . . . . . . . . . . . . . . . . . . . . . . . . . . . . Time . | . . . . . . . . . . . . . . . . . . . . . . . . . . . . . . . . . . Total Robot Build Rating . | . . . . . . . . . . . . . . . . . . . . . . . . . . . . . . . . . . Part Schematics Acquired 19 | . 1 . 2 . . . 1 . . . . . . . . 11 . . . . . . . . . 4 . . . . . . . Parts Built 6 | . . . . . . . . . . . . . . . . . . . . . 1 . . . . 5 . . . . . . . Authchips . | . . . . . . . . . . . . . . . . . . . . . . . . . . . . . . . . . . Time 590 | . . . . . . . . . . . . . . . . . . . . . 152 . . . . 438 . . . . . . . Total Part Build Rating 36 | . . . . . . . . . . . . . . . . . . . . . 5 . . . . 31 . . . . . . . Parts Repaired 16 | . . . 2 . . . 1 . . . . . 1 . . . . 1 . . 2 . . . . 3 . . . . 2 . 4 Time 917 | . . . 159 . . . 32 . . . . . 23 . . . . 50 . . 118 . . . . 307 . . . . 96 . 132 Parts Recycled . | . . . . . . . . . . . . . . . . . . . . . . . . . . . . . . . . . . Recycled Matter . | . . . . . . . . . . . . . . . . . . . . . . . . . . . . . . . . . . Retrieved Matter 115 | . . . . . . . 115 . . . . . . . . . . . . . . . . . . . . . . . . . . Retrieved Components 35 | . 3 . . . . . 10 . 10 . . . 4 . . . . . . . . . . . . 8 . . . . . . . Parts Scanalyzed 7 | . . . 2 . . . 1 . . . . . . . . . . . . . . . . . . 4 . . . . . . . Part Schematics Acquired 7 | . . . 2 . . . 1 . . . . . . . . . . . . . . . . . . 4 . . . . . . . Parts Damaged 2 | . . . . . . . . . . . . . . . . . . . . . . . . . . 2 . . . . . . . Bothacking | -11 -10 -10 -9 -9 -9 -8 -8 -8 -8 -8 -7 -7 -7 -7 -7 -7 -6 -6 -6 -6 -5 -5 -5 -5 -5 -4 -4 -4 -4 -3 -3 -2 -1 ------------ Run | Jun Mat Min Mat Min Exi Min Mat Gar Mat Gar Fac Was Fac Low Low Dat Pro Fac Gar Fac Fac Ext Cet Arc Hub Fac Upp Upp War Pro Res Res Acc Used RIF Installer . | . . . . . . . . . . . . . . . . . . . . . . . . . . . . . . . . . . Robots Hacked . | . . . . . . . . . . . . . . . . . . . . . . . . . . . . . . . . . . Non-combat . | . . . . . . . . . . . . . . . . . . . . . . . . . . . . . . . . . . Combat . | . . . . . . . . . . . . . . . . . . . . . . . . . . . . . . . . . . Robot Hacks Applied . | . . . . . . . . . . . . . . . . . . . . . . . . . . . . . . . . . . Relay Couplers Released 94 | . . . . . . . . 21 . 15 . . 3 . . . . 3 16 . 1 . . . . 5 . . . . 6 20 4 Machine Destruction 74 | . . . . . . . . 21 . 15 . . 3 . . . . 3 16 . 1 . . . . 2 . . . . 6 3 4 Programmers 20 | . . . . . . . . . . . . . . . . . . . . . . . . . . 3 . . . . . 17 . Fabnet Peak Effective % . | . . . . . . . . . . . . . . . . . . . . . . . . . . . . . . . . . . Robots Rewired 22 | . . . . . . . . 3 . 2 . . . . . . . . 5 . . 12 . . . . . . . . . . . Allies Hacked 2 | . . . . . . . . . . . . . . . . . . . . . . . . . . . . . . . 2 . . Hacks Repelled . | . . . . . . . . . . . . . . . . . . . . . . . . . . . . . . . . . . Allies | -11 -10 -10 -9 -9 -9 -8 -8 -8 -8 -8 -7 -7 -7 -7 -7 -7 -6 -6 -6 -6 -5 -5 -5 -5 -5 -4 -4 -4 -4 -3 -3 -2 -1 -------- Run | Jun Mat Min Mat Min Exi Min Mat Gar Mat Gar Fac Was Fac Low Low Dat Pro Fac Gar Fac Fac Ext Cet Arc Hub Fac Upp Upp War Pro Res Res Acc Total Allies 47 | . . . 10 . . . . 3 . 2 . . 1 . . . 1 . 6 . 2 17 . . . 3 . . . . 1 . 1 Largest Group 8 | . . . 3 . . . . 3 3 2 2 . 1 . . . 1 . 5 5 1 8 . . . 3 . . . . 1 . 1 Highest-Rated Group 366 | . . . 31 . . . . 48 48 78 77 . 26 . . . 96 . 366 366 10 220 . . . 138 . . . . 26 . 45 Highest-Rated Ally 119 | . . . 15 . . . . 16 16 39 39 . 26 . . . 96 . 119 119 10 39 . . . 46 . . . . 26 . 45 Warlord Squad Rendezvous 5 | . . . . . . . . . . . . . . . . . . 3 . . 2 . . . . . . . . . . . . Infantry 2 | . . . . . . . . . . . . . . . . . . 1 . . 1 . . . . . . . . . . . . Muscle 2 | . . . . . . . . . . . . . . . . . . 1 . . 1 . . . . . . . . . . . . Chimera 1 | . . . . . . . . . . . . . . . . . . 1 . . . . . . . . . . . . . . . Total Orders 16 | . . . . . . . . . . 5 . . . . . . . . 6 . 1 . . . . . . . . . 1 . 3 STAY 7 | . . . . . . . . . . 2 . . . . . . . . 1 . 1 . . . . . . . . . 1 . 2 ROAM 2 | . . . . . . . . . . . . . . . . . . . 2 . . . . . . . . . . . . . . FOLLOW 7 | . . . . . . . . . . 3 . . . . . . . . 3 . . . . . . . . . . . . . 1 Ally Attacks 263 | . . . 59 . . . . . 24 17 13 . . . . . 12 . 15 41 . 69 . . . 13 . . . . . . . Total Damage 5020 | . . . 305 . . . . . 248 156 224 . . . . . 181 . 621 1618 . 1389 . . . 278 . . . . . . . Kills 49 | . . . 7 . . . . . 2 3 4 . . . . . 2 . 4 15 . 12 . . . . . . . . . . . Allies Corrupted . | . . . . . . . . . . . . . . . . . . . . . . . . . . . . . . . . . . Allies Melted 8 | . . . . . . . . . . . . . . . . . . . . . . 3 . . . . . . 1 . . 4 . Intel | -11 -10 -10 -9 -9 -9 -8 -8 -8 -8 -8 -7 -7 -7 -7 -7 -7 -6 -6 -6 -6 -5 -5 -5 -5 -5 -4 -4 -4 -4 -3 -3 -2 -1 ------- Run | Jun Mat Min Mat Min Exi Min Mat Gar Mat Gar Fac Was Fac Low Low Dat Pro Fac Gar Fac Fac Ext Cet Arc Hub Fac Upp Upp War Pro Res Res Acc Robot Analysis Total 14 | . 1 . 4 . . . 2 . 2 . . . . . . . . . . . 1 . . . 2 1 . . . . . . 1 Derelict Logs Recovered 7 | . . 1 . 2 . . . . . . . . . 1 1 . 1 . . . . . . . . . . 1 . . . . . Drone Launches 52 | . . . 52 . . . . . . . . . . . . . . . . . . . . . . . . . . . . . . Drone Recoveries 49 | . . . 49 . . . . . . . . . . . . . . . . . . . . . . . . . . . . . . Decoded 0b10 Intel 25 | . . . . . . . . . . . . . . . . . . 25 . . . . . . . . . . . . . . . Garrisons 2 | . . . . . . . . . . . . . . . . . . 2 . . . . . . . . . . . . . . . Patrols 7 | . . . . . . . . . . . . . . . . . . 7 . . . . . . . . . . . . . . . Guards 16 | . . . . . . . . . . . . . . . . . . 16 . . . . . . . . . . . . . . . Exploration | -11 -10 -10 -9 -9 -9 -8 -8 -8 -8 -8 -7 -7 -7 -7 -7 -7 -6 -6 -6 -6 -5 -5 -5 -5 -5 -4 -4 -4 -4 -3 -3 -2 -1 ------------- Run | Jun Mat Min Mat Min Exi Min Mat Gar Mat Gar Fac Was Fac Low Low Dat Pro Fac Gar Fac Fac Ext Cet Arc Hub Fac Upp Upp War Pro Res Res Acc Turns Passed 75045 | 47 577 758 1299 380 291 1055 1995 1689 2937 1949 482 118 2389 353 350 52 521 1461 4148 1691 6820 1747 1349 709 1466 8947 287 1753 1136 1129 10860 4010 10290 Spaces Moved 37383 | 45 544 674 981 430 347 874 1390 1117 1396 1116 313 111 2674 632 450 93 309 966 2020 780 2639 757 543 336 633 3389 177 979 645 497 3575 1822 4129 Core 456 | 5 . 122 . . . . . . . . . 14 288 . 1 . 25 . . . . . . 1 . . . . . . . . . Treads 24530 | . . . . . . . . . 1330 662 . . . . . . . . 1758 780 2639 757 499 282 633 3389 177 979 645 497 3552 1822 4129 Legs 2075 | . . . . . . . . . . 454 24 . . . . . 249 966 262 . . . 44 53 . . . . . . 23 . . Wheels 6598 | 40 544 423 981 430 347 874 1390 1117 66 . 289 97 . . . . . . . . . . . . . . . . . . . . . Hover 3595 | . . . . . . . . . . . . . 2386 632 449 93 35 . . . . . . . . . . . . . . . . Flight 129 | . . 129 . . . . . . . . . . . . . . . . . . . . . . . . . . . . . . . Fastest Speed 37 | 50 90 37 80 83 83 83 83 86 101 120 100 50 45 45 45 56 56 120 120 165 165 165 120 120 160 160 161 161 161 161 153 160 160 Average Speed 142 | 85 90 74 90 83 83 83 104 100 166 151 106 98 50 45 55 56 138 120 163 166 183 183 164 167 160 164 161 161 161 167 202 160 160 Slowest Speed 1400 | 90 90 95 98 83 83 83 110 101 250 190 190 130 300 45 150 56 350 190 250 170 245 245 260 1400 160 246 161 161 161 241 270 173 160 Overloaded Moves . | . . . . . . . . . . . . . . . . . . . . . . . . . . . . . . . . . . Propulsion Burnouts . | . . . . . . . . . . . . . . . . . . . . . . . . . . . . . . . . . . Robots Hopped . | . . . . . . . . . . . . . . . . . . . . . . . . . . . . . . . . . . Cave-ins Triggered . | . . . . . . . . . . . . . . . . . . . . . . . . . . . . . . . . . . Exploration Rate (%) 67 | 4 72 98 76 83 76 92 84 85 93 93 10 76 49 82 68 74 43 21 95 28 56 78 74 97 53 76 47 92 94 69 65 43 63 Regions Visited 33 Branch Regions 16 Pre-discovered Areas 16 | . 2 . 2 1 . . 1 . 1 . . . 4 1 1 1 . 1 . . . . . . . 1 . . . . . . . Known Exits Taken 19 | . 1 1 1 . . 1 1 . 1 . . . 1 1 1 1 1 1 . 1 1 1 . . 1 1 . . . 1 1 . . Unknown Exits Taken 9 | 1 . . . 1 1 . . . . . . . . . . . . . . . . . 1 1 . . 1 1 1 . . 1 . Scrap Searched 17 | . . 1 . 1 . 1 . . . . . . . 3 1 . 3 . . . . . . . . . 1 3 . 3 . . . Spaces Dug 290 | . . . 12 . . . . 1 2 . . . 29 . . . . 2 3 2 9 1 . 1 4 52 . . . . 69 42 61 Terrain Destroyed 1895 | . 9 . 31 . . 23 41 23 16 102 6 . 29 . 42 . . 2 108 212 181 25 6 1 226 182 . 25 25 27 129 166 258 Melee 32 | . . . . . . . . 1 . . . . 29 . . . . 2 . . . . . . . . . . . . . . . Projectile 740 | . . . . . . . . . 16 . . . . . . . . . 21 30 77 12 6 1 52 135 . 25 25 27 113 80 120 AOE 1123 | . 9 . 31 . . 23 41 22 . 102 6 . . . 42 . . . 87 182 104 13 . . 174 47 . . . . 16 86 138 Terrain Rammed . | . . . . . . . . . . . . . . . . . . . . . . . . . . . . . . . . . . Walls Destroyed . | . . . . . . . . . . . . . . . . . . . . . . . . . . . . . . . . . . Machines Disabled . | . . . . . . . . . . . . . . . . . . . . . . . . . . . . . . . . . . Actions | -11 -10 -10 -9 -9 -9 -8 -8 -8 -8 -8 -7 -7 -7 -7 -7 -7 -6 -6 -6 -6 -5 -5 -5 -5 -5 -4 -4 -4 -4 -3 -3 -2 -1 --------- Run | Jun Mat Min Mat Min Exi Min Mat Gar Mat Gar Fac Was Fac Low Low Dat Pro Fac Gar Fac Fac Ext Cet Arc Hub Fac Upp Upp War Pro Res Res Acc Total 54691 | 50 596 889 1297 440 350 1186 1764 1547 1886 1283 451 117 3600 675 527 92 353 1151 2678 1034 4282 1034 785 455 963 6179 179 1082 698 747 6590 2632 7099 Wait 12794 | . 25 151 218 3 . 275 192 206 289 38 101 . 784 19 51 . 1 60 432 178 1409 159 62 52 234 2323 . 67 3 203 2419 462 2378 Move 37350 | 44 543 673 980 429 346 873 1389 1116 1396 1115 313 110 2673 631 449 92 308 965 2018 779 2638 756 542 335 632 3388 176 978 644 496 3574 1821 4128 Hop . | . . . . . . . . . . . . . . . . . . . . . . . . . . . . . . . . . . Pick Up 348 | . 6 6 8 1 2 9 21 20 33 11 4 . 11 2 1 . . 17 24 3 8 6 8 5 4 17 1 . 4 4 35 35 42 Fast Attach 275 | 6 2 11 3 . . 1 15 8 12 8 6 1 23 1 4 . 9 14 13 . 11 . 24 6 5 32 . . 3 2 31 15 9 Attach 142 | . . 2 6 . . . 8 2 2 4 2 . 6 1 2 . 2 9 8 3 4 3 17 4 3 5 . . 3 3 16 15 12 Detach 98 | . . . 4 . . . 4 1 2 1 2 2 5 2 3 . . 10 6 . 3 . 12 2 3 5 . . 2 2 12 10 5 Swap 581 | . 2 2 10 1 . 5 11 16 23 25 7 1 6 3 . . 3 9 7 . 45 6 7 10 16 55 1 5 6 4 118 55 122 Drop 436 | . 1 13 6 . 2 8 20 25 44 16 7 2 19 2 2 . . 13 34 . 14 3 6 12 6 28 1 1 9 1 55 40 46 Fire 2130 | . 17 31 57 6 . 9 97 68 63 44 5 1 . . 5 . . . 71 70 147 28 102 29 58 322 . 31 19 32 295 167 356 Melee 210 | . . . . . . . . 3 . . . . 71 13 10 . 30 54 29 . . . . . . . . . . . . . . Ram 6 | . . . 5 . . . 1 . . . . . . . . . . . . . . . . . . . . . . . . . . Kick . | . . . . . . . . . . . . . . . . . . . . . . . . . . . . . . . . . . Crush 46 | . . . . . . . . . 1 . . . . . . . . . . 1 2 1 2 . 2 4 . . 4 . 28 . 1 Escape Stasis 72 | . . . . . . . . 66 . . . . . . . . . . . . . 2 . . . . . . . . 4 . . Rewire 120 | . . . . . . . . 6 . 15 . . . . . . . . 26 . . 70 . . . . . . . . 3 . . Trap 83 | . . . . . . 6 6 10 21 6 4 . 2 1 . . . . 10 . 1 . 3 . . . . . 1 . . 12 . Miscellaneous . | . . . . . . . . . . . . . . . . . . . . . . . . . . . . . . . . . . Route ------- -11/Junkyard -10/Materials (discovered 4 exits: *Mat x3 / *Min) -10/Mines (discovered 2 exits: *Mat x2) -9/Materials (discovered 5 exits: *Mat x3 / *Min x2) -9/Mines (discovered 2 exits: *Mat / *Exi) -9/Exiles -8/Mines -8/Materials (discovered 3 exits: *Fac x2 / Gar) -8/Garrison (discovered 4 exits: *Mat x4) -8/Materials (discovered 4 exits: *Fac x3 / Gar) -8/Garrison (discovered 3 exits: *Fac x3) -7/Factory (discovered 3 exits: *Fac x2 / Sto) -7/Waste -7/Factory (discovered 3 exits: *Fac / *Sto / *Low) -7/Lower Caves -7/Lower Caves (discovered 2 exits: *Fac / *Dat) -7/Data Miner -6/Proximity Caves -6/Factory (discovered 3 exits: *Fac / *Low / Gar) -6/Garrison (discovered 3 exits: *Fac x3) -6/Factory -5/Factory (discovered 5 exits: *Fac / Upp x2 / *Ext x2) -5/Extension (discovered 3 exits: *Fac x2 / *Cet) -5/Cetus (discovered 2 exits: *Fac / *Arc) -5/Archives (discovered 3 exits: *Fac / *Hub x2) -5/Hub_04(d) (discovered 4 exits: *Fac x4) -4/Factory (discovered 6 exits: *Res x3 / *Upp x2 / Arm) -4/Upper Caves -4/Upper Caves (discovered 2 exits: *Res / *War) -4/Warlord -3/Proximity Caves -3/Research (discovered 2 exits: *Res / [*Tes]) -2/Research (discovered 2 exits: *Acc / *Qua) -1/Access To Epsilon Eridani History --------- Turn | Location | Event 10 | -11/Junkyard | Discovered new exit (range 16) 48 | -11/Junkyard | Entered Materials 148 | -10/Materials | Central database locked down 204 | -10/Materials | Discovered new exit (range 14) 222 | -10/Materials | Identified exit to Mines 222 | -10/Materials | Identified exit to Materials 313 | -10/Materials | Build established: Mutant 625 | -10/Materials | Entered Mines 675 | -10/Mines | Assembled infested the area 713 | -10/Mines | Discovered exit to Materials (range 16) 882 | -10/Mines | Lost 6 parts (1p1n2u2w) 972 | -10/Mines | Found a damaged Exp. Sensor Array with a note attached 1033 | -10/Mines | Found Prototype Device 1083 | -10/Mines | Found the Drone Emporium 1088 | -10/Mines | Found Prototype Device 1088 | -10/Mines | Identified Splice Drone Bay 1105 | -10/Mines | Discovered exit to Materials (range 15) 1115 | -10/Mines | YI-UF0 nonchalantly dropped a Grenade Launcher on the ground 1280 | -10/Mines | Build established: Scavenger-Mutant 1383 | -10/Mines | Entered Materials 1383 | -9/Materials | Evolved 2 slots: Power x1, Propulsion x1 1507 | -9/Materials | Discovered new exit (range 11) 1535 | -9/Materials | Identified Exp. Sensor Array 1628 | -9/Materials | Discovered new exit (range 17) 1758 | -9/Materials | Build established: Mutant 1929 | -9/Materials | Discovered new exit (range 7) 1985 | -9/Materials | Identified exit to Mines 1985 | -9/Materials | Identified exit to Materials 2030 | -9/Materials | Central database locked down 2255 | -9/Materials | Repaired Exp. Sensor Array 2562 | -9/Materials | Repaired Hvy. Ion Engine 2678 | -9/Materials | Build established: Scavenger-Mutant 2682 | -9/Materials | Entered Mines 2810 | -9/Mines | Learned location of Zion (-6) 2953 | -9/Mines | Discovered exit to Materials (range 7) 2966 | -9/Mines | A weapon hastily lodged in a ceiling crevice suddenly fell to the ground 3006 | -9/Mines | Learned location of 1 exit from Materials 3018 | -9/Mines | Discovered new exit (range 16) 3023 | -9/Mines | Received a Rocket Launcher from a helpful Derelict 3062 | -9/Mines | Entered Exiles 3084 | -9/Exiles | Met 8R-AWN 3097 | -9/Exiles | Met EX-HEX 3122 | -9/Exiles | Met EX-BIN 3163 | -9/Exiles | Aligned with FarCom system 3164 | -9/Exiles | Given EX-Vault access code 3183 | -9/Exiles | Opened EX-Vault 3190 | -9/Exiles | Found PSU Rigger 3208 | -9/Exiles | Warned to stay clear of 0b10 Research branches 3232 | -9/Exiles | Met EX-DEC 3282 | -9/Exiles | Visited The Gauntlet 3343 | -9/Exiles | Discovered new exit (range 14) 3353 | -9/Exiles | Left Exiles lab with PSU Rigger 3353 | -9/Exiles | Entered Mines 3920 | -8/Mines | Discovered exit to Materials (range 8) 4408 | -8/Mines | Entered Materials 4408 | -8/Materials | Evolved 2 slots: Utility x2 4409 | -8/Materials | Identified exit to Factory 4469 | -8/Materials | Identified exit to Garrison 4759 | -8/Materials | Destroyed 11 combat bots 5411 | -8/Materials | Lost 4 parts (1p1u2w) 5477 | -8/Materials | Build established: Mutant 5805 | -8/Materials | Discovered exit to Factory (range 16) 6039 | -8/Materials | Repaired Arm. Wheel 6152 | -8/Materials | Build established: Scavenger-Mutant 6403 | -8/Materials | Entered Garrison 6484 | -8/Garrison | Triggered checkpoint 6590 | -8/Garrison | Garrison Relay disabled 6618 | -8/Garrison | Discovered new exit (range 13) 6625 | -8/Garrison | Discovered new exit (range 13) 6625 | -8/Garrison | Discovered new exit (range 68) 6625 | -8/Garrison | Discovered new exit (range 88) 6625 | -8/Garrison | Discovered new exit (range 19) 6718 | -8/Garrison | Garrison Relay disabled 6730 | -8/Garrison | Triggered checkpoint 6952 | -8/Garrison | Triggered checkpoint 6994 | -8/Garrison | Triggered checkpoint 7079 | -8/Garrison | Garrison Relay disabled 7177 | -8/Garrison | Build established: Mutant 7436 | -8/Garrison | Triggered checkpoint 7548 | -8/Garrison | Triggered checkpoint 7719 | -8/Garrison | Garrison Relay disabled 7790 | -8/Garrison | Triggered checkpoint 8092 | -8/Garrison | Entered Materials 8092 | -8/Materials | Accompanied by 3 allies 9246 | -8/Materials | Discovered exit to Factory (range 11) 10175 | -8/Materials | Discovered exit to Factory (range 14) 11013 | -8/Materials | Discovered exit to Factory (range 11) 11029 | -8/Materials | Identified exit to Garrison 11029 | -8/Materials | Entered Garrison 11185 | -8/Garrison | Destroyed 8 combat bots 11419 | -8/Garrison | Discovered exit to Factory (range 12) 11858 | -8/Garrison | Garrison Relay disabled 12129 | -8/Garrison | Discovered exit to Factory (range 14) 12210 | -8/Garrison | Garrison Relay disabled 12273 | -8/Garrison | Garrison Relay disabled 12489 | -8/Garrison | Discovered exit to Factory (range 9) 12546 | -8/Garrison | Lost 3 parts (1p2u) 12678 | -8/Garrison | Build established: Scavenger-Mutant 12682 | -8/Garrison | Discovered exit to Factory (range 13) 12682 | -8/Garrison | Discovered exit to Factory (range 66) 12682 | -8/Garrison | Discovered exit to Factory (range 55) 12693 | -8/Garrison | Garrison Relay disabled 12978 | -8/Garrison | Entered Factory 12978 | -7/Factory | Accompanied by 2 allies 12978 | -7/Factory | Evolved 2 slots: Propulsion x1, Utility x1 12979 | -7/Factory | Identified exit to Storage 13084 | -7/Factory | Discovered new exit (range 15) 13241 | -7/Factory | Discovered new exit (range 16) 13328 | -7/Factory | Build established: Mutant 13460 | -7/Factory | Sucked down chute 13460 | -7/Factory | Entered Waste 13473 | -7/Waste | Spotted C-40 Crusher 13494 | -7/Waste | Spotted C-40 Crusher 13509 | -7/Waste | Spotted C-40 Crusher 13516 | -7/Waste | Spotted C-40 Crusher 13523 | -7/Waste | Spotted C-40 Crusher 13534 | -7/Waste | Crushed by Compactor (1 part destroyed, 2 dropped) 13544 | -7/Waste | Crushed by Compactor (1 part destroyed, 2 dropped) 13569 | -7/Waste | Crushed by Compactor (1 part destroyed, 1 dropped) 13571 | -7/Waste | Crushed by Compactor (1 part destroyed, 2 dropped) 13572 | -7/Waste | Discovered new exit (range 10) 13578 | -7/Waste | Entered Factory 13602 | -7/Factory | Lost 5 parts (1p1n2u1w) 13608 | -7/Factory | Repaired Cld. Particle Cannon 14481 | -7/Factory | Discovered new exit (range 10) 14604 | -7/Factory | Build established: Scavenger-Scout 15309 | -7/Factory | Identified exit to Factory 15561 | -7/Factory | Build established: Scavenger-Mutant 15738 | -7/Factory | Discovered exit to Storage (range 12) 15755 | -7/Factory | P-60 Hacker assimilated allied Administrator 4a 15945 | -7/Factory | Discovered new exit (range 3) 15945 | -7/Factory | Identified exit to Lower Caves 15967 | -7/Factory | Entered Lower Caves 15980 | -7/Lower Caves | Met a Warlord Commander 15981 | -7/Lower Caves | Learned location of Warlord (-4) 15983 | -7/Lower Caves | Found Unknown Device 15985 | -7/Lower Caves | Identified Encrypted Comm Array 16006 | -7/Lower Caves | Attracted the attention of an 0b10 checkpoint 16095 | -7/Lower Caves | Attacked by a delusional Derelict stockpiling parts 16228 | -7/Lower Caves | Encountered a Warlord checkpoint 16257 | -7/Lower Caves | Learned 8 Factory zone layouts 16258 | -7/Lower Caves | Discovered new exit (range 15) 16264 | -7/Lower Caves | Identified exit to Lower Caves 16320 | -7/Lower Caves | Entered another Lower Caves area 16353 | -7/Lower Caves | Attracted the attention of an 0b10 outpost 16363 | -7/Lower Caves | Discovered exit to Factory (range 12) 16392 | -7/Lower Caves | Destroyed 7 combat bots 16408 | -7/Lower Caves | Lost 6 parts (2p2n2w) 16645 | -7/Lower Caves | Build established: Mutant 16666 | -7/Lower Caves | Discovered new exit (range 7) 16669 | -7/Lower Caves | Identified exit to Data Miner 16670 | -7/Lower Caves | Entered Data Miner 16670 | -7/Data Miner | Discovered new exit (range 6) 16673 | -7/Data Miner | Identified exit to Proximity Caves 16682 | -7/Data Miner | Met Data Miner 16699 | -7/Data Miner | Learned location of Section 7 (-2) 16699 | -7/Data Miner | Acquired the access code to Warlord's prototype stash 16709 | -7/Data Miner | Received God Mode back door access code from Data Miner 16722 | -7/Data Miner | Entered Proximity Caves 16743 | -6/Proximity Caves | Escorted by Enhanced Grunt 16923 | -6/Proximity Caves | Core integrity fell below 50% 16963 | -6/Proximity Caves | Lost 3 parts (1p1u1w) 16996 | -6/Proximity Caves | Core integrity fell below 20% 17119 | -6/Proximity Caves | Spotted B-75 Beast 17171 | -6/Proximity Caves | Learned location of 1 exit from Lower Caves 17188 | -6/Proximity Caves | Attracted the attention of an 0b10 checkpoint 17229 | -6/Proximity Caves | Discovered exit to Factory (range 10) 17243 | -6/Proximity Caves | Entered Factory 17243 | -6/Factory | Evolved 2 slots: Utility x1, Weapon x1 17323 | -6/Factory | Build established: Derelict-Mutant 17544 | -6/Factory | Identified exit to Garrison 17552 | -6/Factory | Discovered new exit (range 11) 17563 | -6/Factory | Identified exit to Lower Caves 17669 | -6/Factory | Lost 5 parts (2p1n2u) 17714 | -6/Factory | Joined by Warlord Muscle squad 17992 | -6/Factory | Joined by Warlord Chimera squad 18033 | -6/Factory | Incoming investigation squad redirected 18058 | -6/Factory | Repaired Arm. Leg 18110 | -6/Factory | Discovered new exit (range 6) 18115 | -6/Factory | Identified exit to Factory 18402 | -6/Factory | Garrison activated, responded to threat 18441 | -6/Factory | Joined by Warlord Infantry squad 18443 | -6/Factory | P-60 Hacker assimilated allied 0F-CE3(g) 18449 | -6/Factory | Lost 3 parts (3u) 18704 | -6/Factory | Entered Garrison 18780 | -6/Garrison | Build established: Scavenger-Mutant 19037 | -6/Garrison | Spotted B-90 Cyclops 19101 | -6/Garrison | Rewired B-86 Titan 19192 | -6/Garrison | Allies destroyed B-90 Cyclops 19360 | -6/Garrison | Triggered checkpoint 19439 | -6/Garrison | Lost 3 parts (3u) 19493 | -6/Garrison | Garrison Relay disabled 19749 | -6/Garrison | Triggered checkpoint 19915 | -6/Garrison | Triggered checkpoint 19927 | -6/Garrison | Triggered checkpoint 20228 | -6/Garrison | Triggered checkpoint 20243 | -6/Garrison | Build established: Scavenger-Skirmisher 20317 | -6/Garrison | Garrison Relay disabled 20363 | -6/Garrison | Discovered new exit (range 12) 20380 | -6/Garrison | Identified exit to Factory 20606 | -6/Garrison | Build established: Scavenger-Mutant 20628 | -6/Garrison | Triggered checkpoint 20641 | -6/Garrison | Garrison Relay disabled 20685 | -6/Garrison | Discovered exit to Factory (range 13) 20946 | -6/Garrison | Triggered checkpoint 20984 | -6/Garrison | Garrison Relay disabled 21056 | -6/Garrison | Triggered checkpoint 21185 | -6/Garrison | Discovered exit to Factory (range 10) 21215 | -6/Garrison | Phase Generator disabled 21491 | -6/Garrison | Triggered checkpoint 21786 | -6/Garrison | Triggered checkpoint 21800 | -6/Garrison | Build established: Scavenger-Tank 22156 | -6/Garrison | Rescued a captive Derelict 22250 | -6/Garrison | Rewired Executioner 22415 | -6/Garrison | Attempted to access garrison exit controls, blocked by remote lockdown 22446 | -6/Garrison | Build established: Scavenger-Mutant 22852 | -6/Garrison | Entered Factory 22852 | -6/Factory | Accompanied by 5 allies 23159 | -6/Factory | Spotted Executioner 23164 | -6/Factory | Allies destroyed Executioner 23202 | -6/Factory | First assault squad dispatched 23222 | -6/Factory | Incoming assault squad redirected 23232 | -6/Factory | Incoming assault squad redirected 23573 | -6/Factory | Incoming assault squad redirected 23581 | -6/Factory | Incoming assault squad redirected 23929 | -6/Factory | Incoming assault squad redirected 24276 | -6/Factory | Incoming assault squad redirected 24278 | -6/Factory | Incoming assault squad redirected 24387 | -6/Factory | Incoming investigation squad redirected 24390 | -6/Factory | Discovered exit to Factory (range 13) 24481 | -6/Factory | High security lockdown imminent 24543 | -6/Factory | Entered another Factory area 24543 | -5/Factory | Evolved 2 slots: Utility x1, Weapon x1 24829 | -5/Factory | Repaired Arm. Heavy Treads 24882 | -5/Factory | Repaired Imp. Heavy Armor Plating 25143 | -5/Factory | First assault squad dispatched 25170 | -5/Factory | Incoming assault squad redirected 25297 | -5/Factory | Build established: Scavenger-Tank 25773 | -5/Factory | Incoming assault squad redirected 25961 | -5/Factory | Build established: Scavenger-Skirmisher 26668 | -5/Factory | Incoming assault squad redirected 26967 | -5/Factory | Build established: Scavenger-Tank 27095 | -5/Factory | Cargo convoy interrupted 27287 | -5/Factory | Joined by Warlord Infantry squad 27457 | -5/Factory | Discovered new exit (range 9) 29267 | -5/Factory | Identified exit to Upper Caves 29267 | -5/Factory | Identified exit to Extension 29523 | -5/Factory | Joined by Warlord Muscle squad 29733 | -5/Factory | Incoming assault squad redirected 29751 | -5/Factory | Build established: Scavenger-Mutant 30120 | -5/Factory | Build established: Scavenger-Tank 30318 | -5/Factory | Incoming investigation squad redirected 30443 | -5/Factory | Build established: Scavenger-Mutant 30446 | -5/Factory | Fabricated Lgt. Regenerative Plating (x1) 31363 | -5/Factory | Entered Extension 31783 | -5/Extension | Rescued a captive Derelict 31784 | -5/Extension | Rescued a captive Derelict 32022 | -5/Extension | Rescued a captive Derelict 32067 | -5/Extension | Destroyed B-75 Beast 32084 | -5/Extension | Spotted B-75 Beast 32110 | -5/Extension | Destroyed B-75 Beast 32160 | -5/Extension | Discovered new exit (range 3) 32242 | -5/Extension | Build established: Scavenger-Tank 32468 | -5/Extension | Identified exit to Factory 32680 | -5/Extension | Rescued a captive Derelict 32692 | -5/Extension | Rescued a captive Derelict 32999 | -5/Extension | Energy Cycler disabled 33067 | -5/Extension | Discovered exit to Factory (range 10) 33069 | -5/Extension | Discovered new exit (range 6) 33077 | -5/Extension | Identified exit to Cetus 33110 | -5/Extension | Entered Cetus 33133 | -5/Cetus | Spotted Cetus Guard 33148 | -5/Cetus | Destroyed Cetus Guard 33157 | -5/Cetus | Destroyed Cetus Guard 33161 | -5/Cetus | Spotted Cetus Guard 33171 | -5/Cetus | Destroyed Cetus Guard 33176 | -5/Cetus | Spotted Cetus Guard 33179 | -5/Cetus | Destroyed Cetus Guard 33442 | -5/Cetus | Discovered new exit (range 16) 33472 | -5/Cetus | Spotted Cetus Guard 33472 | -5/Cetus | Spotted Cetus Guard 33529 | -5/Cetus | Spotted Cetus Guard 33538 | -5/Cetus | Spotted Cetus Guard 33538 | -5/Cetus | Destroyed Cetus Guard 33546 | -5/Cetus | Destroyed Cetus Guard 33619 | -5/Cetus | Destroyed Cetus Guard 33640 | -5/Cetus | Destroyed 12 combat bots 33649 | -5/Cetus | Destroyed Cetus Guard 33673 | -5/Cetus | Lost 11 parts (2p2n5u2w) 33776 | -5/Cetus | Cetus Manufacturing Module disabled 33959 | -5/Cetus | Discovered exit to Factory (range 16) 34140 | -5/Cetus | Lost 5 parts (2u3w) 34160 | -5/Cetus | Destroyed 7 combat bots 34341 | -5/Cetus | Lost 5 parts (1p1n2u1w) 34346 | -5/Cetus | Destroyed 9 combat bots 34459 | -5/Cetus | Entered Archives 34776 | -5/Archives | Unable to access archive contents 34792 | -5/Archives | Unable to access archive contents 34803 | -5/Archives | Build established: Scavenger-Skirmisher 34808 | -5/Archives | Unable to access archive contents 34814 | -5/Archives | Discovered new exit (range 14) 34867 | -5/Archives | Discovered exit to Factory (range 15) 34920 | -5/Archives | Discovered new exit (range 14) 34965 | -5/Archives | Unable to access archive contents 34984 | -5/Archives | Unable to access archive contents 35168 | -5/Archives | Entered Hub_04(d) 36011 | -5/Hub_04(d) | Build established: Scavenger-Tank 36111 | -5/Hub_04(d) | Discovered exit to Factory (range 17) 36172 | -5/Hub_04(d) | Central database locked down 36177 | -5/Hub_04(d) | Discovered exit to Factory (range 16) 36279 | -5/Hub_04(d) | Network Hub disabled 36289 | -5/Hub_04(d) | Spotted Lightning 36290 | -5/Hub_04(d) | Spotted Lightning 36305 | -5/Hub_04(d) | Spotted Lightning 36306 | -5/Hub_04(d) | Discovered exit to Factory (range 11) 36313 | -5/Hub_04(d) | Core integrity fell below 50% 36322 | -5/Hub_04(d) | Destroyed Lightning 36337 | -5/Hub_04(d) | Destroyed Lightning 36385 | -5/Hub_04(d) | Destroyed Lightning 36424 | -5/Hub_04(d) | Found Prototype Device 36424 | -5/Hub_04(d) | Identified Exp. EM Disruption Field 36428 | -5/Hub_04(d) | Found Prototype Device 36428 | -5/Hub_04(d) | Identified Exp. Phase Shifter 36552 | -5/Hub_04(d) | Discovered exit to Factory (range 17) 36634 | -5/Hub_04(d) | Entered Factory 36634 | -4/Factory | Evolved 2 slots: Propulsion x1, Utility x1 36862 | -4/Factory | Discovered new exit (range 7) 37225 | -4/Factory | Build established: Scavenger-Mutant 37586 | -4/Factory | Build established: Scavenger-Tank 37746 | -4/Factory | Identified exit to Upper Caves 37746 | -4/Factory | Identified exit to Armory 37932 | -4/Factory | Incoming investigation squad redirected 38508 | -4/Factory | Build established: Scavenger-Mutant 39496 | -4/Factory | Build established: Scavenger-Tank 39537 | -4/Factory | Allied Derelicts emerged from ambush trap array 40078 | -4/Factory | Build established: Scavenger-Mutant 40117 | -4/Factory | Fabricated Hyb. Antimatter Reactor (x2) 40159 | -4/Factory | Incoming investigation squad redirected 40293 | -4/Factory | Fabricated Lgt. Regenerative Plating (x1) 40492 | -4/Factory | Discovered new exit (range 8) 40917 | -4/Factory | Fabricated Lgt. Regenerative Plating (x1) 41540 | -4/Factory | Repaired Broken Force Field 41603 | -4/Factory | Repaired Broken Adv. Variable Charge Gun 42345 | -4/Factory | Fabricated Adv. Variable Charge Gun? 42444 | -4/Factory | Build established: Scavenger-Tank 43295 | -4/Factory | Discovered new exit (range 5) 43475 | -4/Factory | Repaired Broken Adv. KE Penetrator 44892 | -4/Factory | Build established: Machinist-Mutant 45581 | -4/Factory | Entered Upper Caves 45639 | -4/Upper Caves | Encountered a Warlord checkpoint 45798 | -4/Upper Caves | Build established: Machinist-Tank 45853 | -4/Upper Caves | Discovered new exit (range 10) 45868 | -4/Upper Caves | Entered another Upper Caves area 45875 | -4/Upper Caves | Ambushed by wild Derelicts 45906 | -4/Upper Caves | Discovered new exit (range 14) 46157 | -4/Upper Caves | Attracted the attention of an 0b10 checkpoint 46400 | -4/Upper Caves | Learned location of 1 exit from Proximity Caves 46833 | -4/Upper Caves | Discovered new exit (range 4) 47621 | -4/Upper Caves | Entered Warlord 47676 | -4/Warlord | System corruption cleaned by Quarantine Array 48011 | -4/Warlord | Met Warlord 48034 | -4/Warlord | Opened Warlord's prototype stash 48036 | -4/Warlord | Warlord's base attacked by MAIN.C 48070 | -4/Warlord | Found Prototype Reactor 48070 | -4/Warlord | Identified Vortex Chain Reactor 48346 | -4/Warlord | Build established: Tank 48386 | -4/Warlord | Warlord forces counterattacked 48425 | -4/Warlord | Spotted Striker 48462 | -4/Warlord | Spotted Striker 48573 | -4/Warlord | Opened side exit 48711 | -4/Warlord | Warlord base infiltrated, sounded retreat 48728 | -4/Warlord | Discovered new exit (range 14) 48737 | -4/Warlord | Spotted Executioner 48737 | -4/Warlord | Spotted Striker 48757 | -4/Warlord | Entered Proximity Caves 48758 | -3/Proximity Caves | Identified exit to Research 48781 | -3/Proximity Caves | Lost 3 parts (3u) 48956 | -3/Proximity Caves | Received a Behemoth hack from an annoying Tinkerer 49234 | -3/Proximity Caves | Attracted the attention of an 0b10 outpost 49886 | -3/Proximity Caves | Entered Research 49886 | -3/Research | Evolved 2 slots: Utility x1, Weapon x1 50137 | -3/Research | Incoming investigation squad redirected 50190 | -3/Research | Lost 3 parts (1n2w) 50789 | -3/Research | Lost 7 parts (1p4u2w) 50938 | -3/Research | Discovered new exit (range 15) 51112 | -3/Research | Build established: Scavenger-Tank 52222 | -3/Research | Build established: Scavenger-Mutant 52363 | -3/Research | Spotted B-86 Titan 52420 | -3/Research | Destroyed B-86 Titan 52974 | -3/Research | Found Exp. Thermal Defense Suite 53115 | -3/Research | Build established: Scavenger-Tank 54059 | -3/Research | Found Antimissile System 55092 | -3/Research | Build established: Scavenger-Mutant 55408 | -3/Research | Build established: Scavenger-Tank 55503 | -3/Research | Garrison activated, responded to threat 55559 | -3/Research | Incoming assault squad redirected 55674 | -3/Research | Found Exp. Focal Shield 55886 | -3/Research | Build established: Scavenger-Mutant 56145 | -3/Research | Spotted B-86 Titan 56172 | -3/Research | Incoming investigation squad redirected 56581 | -3/Research | Destroyed B-86 Titan 57912 | -3/Research | Incoming investigation squad redirected 58011 | -3/Research | Repaired Exp. Cooling System 58379 | -3/Research | Repaired Broken Adv. Force Field 58477 | -3/Research | Incoming assault squad redirected 59581 | -3/Research | Build established: Mutant 60090 | -3/Research | Discovered new exit (range 16) 60130 | -3/Research | Identified exit to Research 60746 | -3/Research | Entered another Research area 60746 | -2/Research | Warlord forces began assault on 0b10 60746 | -2/Research | Evolved 2 slots: Propulsion x1, Utility x1 60771 | -2/Research | Distinguished unit "Lucky Slug" dispatched to help 60771 | -2/Research | Distinguished unit "Railsplitters" dispatched to help 60856 | -2/Research | Research machine network offline 61071 | -2/Research | Spotted Striker 61073 | -2/Research | Spotted Striker 61350 | -2/Research | Found Exp. Focal Shield 61353 | -2/Research | Found Exp. Focal Shield 61365 | -2/Research | Found Prototype Device 61365 | -2/Research | Identified Beam Splitter 61463 | -2/Research | Spotted B-90 Cyclops 61562 | -2/Research | Destroyed B-90 Cyclops 61771 | -2/Research | Build established: Scavenger-Tank 61784 | -2/Research | Spotted B-90 Cyclops 61784 | -2/Research | Discovered new exit (range 11) 61857 | -2/Research | Destroyed B-90 Cyclops 61887 | -2/Research | Found Prototype Processor 61887 | -2/Research | Identified Exp. Terrain Scan Processor 61915 | -2/Research | Found Adv. Powered Armor 62157 | -2/Research | Build established: Tank 62403 | -2/Research | Identified exit to Quarantine 62799 | -2/Research | Build established: Scavenger-Tank 62974 | -2/Research | Found Prototype Slashing Weapon 62983 | -2/Research | Identified Vibroblade 63291 | -2/Research | Found Prototype Device 63293 | -2/Research | Identified Adv. Kinecellerator 63595 | -2/Research | Build established: Mutant 63777 | -2/Research | Spotted Striker 63784 | -2/Research | Destroyed Striker 63890 | -2/Research | Spotted Executioner 63895 | -2/Research | Destroyed Executioner 63897 | -2/Research | Spotted Executioner 63900 | -2/Research | Spotted Striker 63909 | -2/Research | Destroyed Executioner 63921 | -2/Research | Destroyed Striker 63972 | -2/Research | Destroyed 9 combat bots 64000 | -2/Research | Spotted Striker 64015 | -2/Research | Destroyed Striker 64016 | -2/Research | Spotted Striker 64025 | -2/Research | Destroyed Striker 64036 | -2/Research | Spotted Striker 64054 | -2/Research | Destroyed Striker 64096 | -2/Research | Destroyed 7 combat bots 64164 | -2/Research | Spotted Striker 64166 | -2/Research | Spotted Striker 64204 | -2/Research | Destroyed Striker 64237 | -2/Research | Destroyed Striker 64276 | -2/Research | Lost 10 parts (1p6u3w) 64639 | -2/Research | Spotted Executioner 64641 | -2/Research | Spotted Executioner 64644 | -2/Research | Spotted Executioner 64647 | -2/Research | Spotted Executioner 64651 | -2/Research | Destroyed Executioner 64653 | -2/Research | Destroyed Executioner 64661 | -2/Research | Destroyed Executioner 64671 | -2/Research | Destroyed Executioner 64692 | -2/Research | Destroyed 10 combat bots 64731 | -2/Research | Discovered new exit (range 16) 64756 | -2/Research | Entered Access 64756 | -1/Access | Evolved 2 slots: Power x2 64809 | -1/Access | Garrison activated, responded to threat 65191 | -1/Access | Repaired Adv. Heavy Siege Treads 65229 | -1/Access | Repaired Adv. Heavy Siege Treads 66053 | -1/Access | Build established: Generator-Tank 66341 | -1/Access | Garrison activated, responded to threat 67062 | -1/Access | Build established: Scavenger-Mutant 67077 | -1/Access | Energy Cycler disabled 68315 | -1/Access | Build established: Scavenger-Tank 69988 | -1/Access | Found Prototype Processor 69993 | -1/Access | Identified Exp. Core Analyzer 70116 | -1/Access | Destroyed 7 combat bots 70572 | -1/Access | Found Prototype Processor 70579 | -1/Access | Identified Spectral Analyzer 71959 | -1/Access | Incoming assault squad redirected 72381 | -1/Access | Build established: Generator-Mutant 72536 | -1/Access | Incoming assault squad redirected 73347 | -1/Access | Repaired Adv. Force Field 73385 | -1/Access | Repaired Centrium Light Armor Plating 73756 | -1/Access | First assault squad dispatched 73773 | -1/Access | Incoming assault squad redirected 73922 | -1/Access | Destroyed 8 combat bots 73984 | -1/Access | Build established: Generator-Tank 74011 | -1/Access | Maximum security lockdown engaged 74132 | -1/Access | Spotted Executioner 74132 | -1/Access | Spotted Executioner 74136 | -1/Access | Spotted Striker 74137 | -1/Access | Spotted Executioner 74146 | -1/Access | Destroyed Executioner 74150 | -1/Access | Destroyed Striker 74161 | -1/Access | Sterilization system engaged 74165 | -1/Access | Destroyed Executioner 74169 | -1/Access | Destroyed Executioner 74198 | -1/Access | Destroyed 22 combat bots 74369 | -1/Access | Found Prototype Device 74371 | -1/Access | Identified Adv. EM Disruption Field 74377 | -1/Access | Found Adv. EM Disruption Field 74461 | -1/Access | Ambient heat levels rising (+10) 74515 | -1/Access | Build established: Scavenger-Tank 74611 | -1/Access | Ambient heat levels rising (+10) 74761 | -1/Access | Ambient heat levels rising (+10) 74911 | -1/Access | Ambient heat levels rising (+10) 75035 | -1/Access | Discovered new exit (range 5) 75046 | *** | Escaped! Last Messages --------------- 74984_ ZC OZ/LEHSEO8YOZAORONN>GYMSE#WP1NT%#QKY 74992_ G-73 Enforcer system terminally corrupted. 74992_ Lgt. Quantum Reactor fried. 74992_ Phase Gun fried. 74992_ Hvy. Laser fried. 74995_ Activated siege mode. 74995_ G-73 Enforcer shuts down. 74995_ G-73 Enforcer destroyed. 75003_ G-73 Enforcer misfires. 75006_ Adv. Heat Sink fried. 75006_ Phase Gun fried. 75006_ Adv. Heat Sink fried. 75006_ G-73 Enforcer destroyed. Corrupted Adv. Heat Sink melts. 75014_ Ended siege mode. 75035_ The Access Shell folds into the floor. 75035_ EXIT=FOUND [Achievement: Torch] [Achievement: Victory By Combat] [Achievement: Death Machine] Map ----- +----------------------------------------------------+ | #?????# #??????#### #???# #?? | | #?????# #??????# # #???# #?? | | ##????#! ###############+######## ### | | ###### # | | + # ! | | ###### # !===! | | #####????# + !=%=! | | ?????????# # ##########=!########### | | ?????????# # ??????????#%!# """""""" | | ???#################### ???????????# !# """"T"" | | ???# ##?? ????????????# # | | ???# **! ### ?????????????# # ! | | ???# *!! ### ???????????????# # | | ##?# ! #?#????????????????# # | | #?# #???BB????BB???????# # | | #?# #???BB????BB???????# # | | #######+###/#####??????????????????# ##########+ | | ####### % #??????????????????????# % % | | + % #??????????????????????# | | ########## #??????????????????????# ########### | | # = # #?????#""""""""""#?????# #????#????? | | # # #?????# #?????# #?????????? | | # " # #?????# #?????# ########### | | # """ # #?????# #?????# # | | # """ + #?????# "" #?????# # | | # " # #?????# "@ #?????# #" | | ## # #?????# #?????# #"" " | | #" # #?????# #?????# #"" """ | | ## # #?????# #?????# #"" """ | | ########### #????## ##????# #"" " | | #?????????# #????# #????# #"T | | #?????????# #????##"" ##????# #"" | | ??????###?# #?????#"" #?????# #"" " | | ?????? ## #?????#"" #?????# #"" """ | | ?????? ## #?????#T #?????# #"" """ | | ?????? ## #?????#"" *!#?????# #" " | | ??? ?? ## #?????#"" %=%#?????# # | | ??? ?" ## #######"" ####### # | | ???? "" ## =%% ^ ########### | | ???? Y" ## #???# | | ?????"" ## ######################## #???# | | ?????"" ## #??????????????????????# #???# | | ?????? ## #??????????????????????# #???# | | ?????? ?# #??????????????????????# #???# | | #######+### #????????############### #???# | | #????????# #???# | | #????????# #???# | | #### ########????????# ##### #########??## | | ???# #???????????????# #?###/############# | | ???# #???????????????# #?# # | +----------------------------------------------------+ Best States ------------- Heat Dissipation 145 Energy Generation 111 Energy Capacity 1350 Matter Stores 300 Matter Capacity 800 Sight Range 18 Robot Scan Range 20 Terrain Scan Density 10 Jamming Range 16 Power Amplification 70 Additional Mass Support 6 Base Temperature (-) 200 Armor Coverage 2400 Resistance: KI 50 Resistance: TH 50 Resistance: EX 70 Resistance: EM 95 Resistance: I 20 Resistance: S 20 Resistance: P 20 Weapon Shielding 66 Point Defense Rating 240 Weapon Cycling 25 Phase Shifting 20 Evasion (%) 62 Melee Accuracy 8 Target Analysis 5 Recoil Reduction 6 Particle Charging 20 Offensive Hacking 22 Defensive Hacking 12 Authchip Count 1 Item Schematics ----------------- EM Pulse Gun | -10/Materials | Hacked Exp. Sensor Array | -9/Materials | Scanalyzed Hrd. Light Armor Plating | -9/Materials | Scanalyzed Rnf. Deuterium Engine | -8/Materials | Scanalyzed Combat Drone Bay | -7/Data Miner | Free Lgt. Regenerative Plating | -7/Data Miner | Free Biomechanical Wings | -7/Data Miner | Free Exp. Targeting Computer | -7/Data Miner | Free Imp. Heavy Laser | -7/Data Miner | Free Field Propulsion Drive | -7/Data Miner | Free Imp. Powered Armor | -7/Data Miner | Free Smartbomb Launcher | -7/Data Miner | Free Imp. Cryofiber Web | -7/Data Miner | Free Mni. Drone Bay | -7/Data Miner | Free Enh. Gauss Cannon | -7/Data Miner | Free Adv. Variable Charge Gun | -4/Factory | Scanalyzed Imp. Medium Armor Plating | -4/Factory | Scanalyzed Exp. Phase Shifter | -4/Factory | Scanalyzed Triangulator | -4/Factory | Scanalyzed Robot Schematics ------------------ X-67 Chaingunner | -7/Data Miner | Free W-25 Informer | -7/Data Miner | Free H-66 Slayer | -7/Data Miner | Free M-22 Extractor | -7/Data Miner | Free A-15 Conveyor | -7/Data Miner | Free Fabricated ------------ Lgt. Regenerative Plating | x1 | -5/Factory Hyb. Antimatter Reactor | x2 | -4/Factory | Preloaded Lgt. Regenerative Plating | x1 | -4/Factory Lgt. Regenerative Plating | x1 | -4/Factory Adv. Variable Charge Gun | x1 | -4/Factory Alien Tech Used ----------------- None Achievements -------------- Death Machine Killing Spree Left-hand Path More Power To You No Explosion For You Overkill Shocking Conclusion Shutout Torch Treasure Hunter Victory By Combat Challenges ------------ None Game ------ Seed IntegrityActiveStreamer Manual? 0 Play Time 17:32:39 Cumulative 205.1 hours Start 2023.04.27 @ 12:13:07 End 2023.04.28 @ 22:14:56 Sessions 16 Manual Loads 0 Difficulty Adventurer Special Mode None Game No. 46 Rogue 0 Adventurer 46 Explorer 0 Win Type 0 Total 2 Types 2/0/0/0/0/0/0/0/0 Lore% 65 Gallery% 72 Achievement% 61 Wizard Run 0 Options --------- ASCII 0 Keyboard 1 Movement Numpad Keybinds 1 Fullscreen 2 Font 12/Smallcaps Map View 90x64 Tactical HUD 1 Map Filters NONE Filters NONE Steam 1 RUN: ac82cc36-4a0b-4b7d-b418-60874aeebc47